Workbook

Sheet ПредвРасчет
B1: Финансовая модель проекта создания и эксплуатации школы на 1000 мест с бассейном, дополнительными функциональными помещениями в микрорайоне 20А г. Сургута на основе концессионного механизма
A4: 1 | B4: УПРАВЛЕНИЕ | F4: СЦЕНАРНЫЙ АНАЛИЗ ПРОЕКТА (количество лет эксплуатации)
B5: Срок эксплуатации, лет | C5: 5 | F5: Номер сценария | I5: Тек.сценарий | J5: 1 | K5: 2 | L5: 3 | M5: 4 | O5: ПРОВЕРКИ (балансировка модели "ctrl + е" на русской раскладке)
B6: Капитальный грант на инвест.стадии | C6: 0.3 | F6: Срок соглашения, лет | I6: =I7+3 -> 8 | K6: =K7+3 -> 8 | O6: Налог на прибыль | Q6: =C135 -> TRUE
B7: Заемные средства | C7: =(1 - ПР_КГ_процент) * D7 -> 0.49 | D7: 0.7 | F7: Количество лет эксплуатации | I7: =C5 -> 5 | K7: 5 | O7: Баланс НДС | Q7: =C152 -> TRUE
B8: Собственные средства | C8: =(1 - ПР_КГ_процент) * D8 -> 0.21 | D8: 0.3 | F8: Кап. грант на инвест. стадии | I8: =ПР_КГ_процент -> 0.3 | K8: 0.3 | O8: Расчет IRR | Q8: =C190 -> TRUE
B9: Стоимость заемных средств | C9: 0.125 | D9: * старший долг | O9: Точность расчетов | Q9: =C221 -> TRUE
B10: Стоимость собственных средств | C10: 0.15 | D10: * младший долг | F10: Интегральные показатели проекта
B12: Ставка НДС | C12: 0.18 | F12: PV бюджета, млн.р. | I12: =SUM(ПР_PV_бюджета) * -1 -> -1148.093815 | K12: -1148.093815 | O12: СЦЕНАРНЫЙ АНАЛИЗ ПРОЕКТА (5 лет эксплуатации, 8 лет срок КС)
B13: Возмещение НДС (0 - 100% CAPEX, 1 - CAPEX без КапГранта) | C13: 0 | F13: IRR инвестора | I13: =ПР_IRR_инвестора -> 0.1457923391 | K13: 0.1457923391 | O13: Номер сценария | T13: Тек.сценарий | U13: 1 | V13: 2
B14: OPEX в год, млн. р. | C14: 1 | F14: IRR проекта для бюджета | I14: =ПР_IRR_проекта -> 0.1050536562 | K14: 0.1050536562 | O14: Капитализация банковских процентов в млад.долг | T14: =IF(ПР_Сцен_капит_проц_ЗС = 1,"да","нет") -> да | U14: да
O15: Капитализация банковских процентов в baloon | T15: =IF(ПР_Сцен_капит_проц_baloon = 1,"да","нет") -> нет | U15: нет
B16: Стоимость объекта с НДС, млн. р. | C16: 1274.18253 | D16: * цены соотв.лет | F16: Номинальные показатели проекта | O16: Интегральные показатели проекта
B17: доля здание | C17: =1 - ПР_CAPEX_доля_оборуд-ПР_CAPEX_доля_малоц -> 0.837 | F17: Расходы бюджета Югры, млн. р. | I17: =SUM(ПР_Расх_бюджета) * -1 -> -2023.113201 | K17: -2023.113201 | O17: PV бюджета, млн.р. | T17: =$I$12 -> -1148.093815 | U17: -1148.093815
B18: доля обрудование | C18: 0.1 | F18: Доходы бюджета, млн. р. | I18: =SUM(ПР_Расх_НП) -> 146.0923155 | K18: 146.0923155 | O18: IRR инвестора | T18: =$I$13 -> 0.1457923391 | U18: 0.1457923391
B19: доля малоценка | C19: 0.063 | F19: Удорожание объекта, млн. р. | I19: =-I17 - SUM(ПР_CAPEX) - SUM(ПР_проектир) - SUM(ПР_OPEX) -> 723.9306708 | K19: 723.9306708 | O19: IRR проекта для бюджета | T19: =$I$14 -> 0.1050536562 | U19: 0.1050536562
B20: Процент CAPEX в год | C20: 0.5 | F20: Переплата бюджета, млн. р. | I20: =I19-I18 -> 577.8383553 | K20: 577.8383553 | O20: Баланс по НДС
F21: Показатели проекта при государственном контракте | O21: НДС возмещенный от CAPEX | T21: =I26 -> -195.1295385 | U21: -195.1295385
B22: Капит-ция банковских процентов в МД (1-да, 0-нет) | C22: 1 | F22: Расходы бюджета Югры, млн. р. | I22: =SUM(ПР_Расх_Бюдж_44ФЗ) * -1 -> -1705.409198 | K22: -1705.409198 | O22: НДС уплаченный по проекту | T22: =I27 -> 223.5150321 | U22: 223.5150321
B23: Капит-ция банк.процентов в baloon (1-да, 0-нет) | C23: 0 | F23: PV бюджета, млн.р. | I23: =ПР_Расх_Бюдж_44ФЗ_PV -> -1077.630697 | K23: -1077.630697 | O23: Номинальные показатели проекта
F24: Переплата бюджета, млн. р. | I24: =(SUM(ПР_CAPEX) + SUM(ПР_проектир) + I22) *-1 -> 411.2266676 | K24: 411.2266676 | O24: Расходы бюджета Югры, млн. р. | T24: =$I$17 -> -2023.113201 | U24: -2023.113201
B25: Ставка дисконтирования | C25: 0.114 | F25: Баланс по НДС | O25: Переплата бюджета, млн. р. | T25: =$I$20 -> 577.8383553 | U25: 577.8383553
B26: Ставка по облигациям | C26: 0.114 | F26: НДС возмещенный от CAPEX | I26: =SUM(ПР_НДС_возм) -> -195.1295385 | K26: -195.1295385
F27: НДС уплаченный по проекту | I27: =SUM(ПР_НДС_уплач) -> 223.5150321 | K27: 223.5150321
F29: Годы
F30: 2017 | G30: 2018 | H30: 2019 | I30: 2020 | J30: 2021 | K30: 2022 | L30: 2023 | M30: 2024 | N30: 2025 | O30: 2026 | P30: 2027 | Q30: 2028 | R30: 2029 | S30: 2030 | T30: 2031 | U30: 2032 | V30: ПР_год
B31: Проектирование | E31: =SUM(F31:U31) -> 1 | F31: 1 | G31: 0 | H31: 0 | I31: 0 | J31: 0 | K31: 0 | L31: 0 | M31: 0 | N31: 0 | O31: 0 | P31: 0 | Q31: 0 | R31: 0 | S31: 0 | T31: 0 | U31: 0
B32: Инвестиционная стадия | E32: 2 | F32: 0 | G32: 1 | H32: 1 | I32: 0 | J32: 0 | K32: 0 | L32: 0 | M32: 0 | N32: 0 | O32: 0 | P32: 0 | Q32: 0 | R32: 0 | S32: 0 | T32: 0 | U32: 0 | V32: ПР_Ф_ИнвСтадия
E33: х | F33: 0 | G33: 0 | H33: 0 | I33: =$C$5 -> 5 | J33: =(I33-1)*((I33-1)>0) -> 4 | K33: 3 | L33: 2 | M33: 1 | N33: 0 | O33: 0 | P33: =(O33-1)*((O33-1)>0) -> 0 | Q33: 0 | R33: 0 | S33: 0 | T33: 0 | U33: 0
B34: Эксплуатационная стадия | E34: 5 | F34: 0 | G34: 0 | H34: 0 | I34: =IF(I33 > 0,1,0) -> 1 | J34: =IF(J33 > 0,1,0) -> 1 | K34: 1 | L34: 1 | M34: 1 | N34: 0 | O34: 0 | P34: 0 | Q34: 0 | R34: 0 | S34: 0 | T34: 0 | U34: 0 | V34: ПР_Ф_Экспл
B35: Флаг проекта | F35: =IF((F31+F32+F33+F34) >= 1,1,0) -> 1 | G35: =IF((G31+G32+G33+G34) >= 1,1,0) -> 1 | H35: 1 | I35: 1 | J35: 1 | K35: 1 | L35: 1 | M35: 1 | N35: 0 | O35: 0 | P35: 0 | Q35: 0 | R35: 0 | S35: 0 | T35: 0 | U35: 0 | V35: ПР_Ф_проекта
A37: =MAX($A$1:A36) + 1 -> 2 | B37: ИНВЕСТИЦИОННАЯ СТАДИЯ
F38: Годы
C39: Значение | D39: Ед.изм. | E39: Сумма | F39: =ПР_год -> 2017 | G39: 2018 | H39: 2019 | I39: 2020 | J39: 2021 | K39: 2022 | L39: 2023 | M39: 2024 | N39: 2025 | O39: 2026 | P39: 2027 | Q39: 2028 | R39: 2029 | S39: 2030 | T39: 2031 | U39: 2032
B40: Проектирование | D40: млн. р. | E40: =SUM(F40:U40) -> 20 | F40: 20 | G40: 0 | H40: 0 | I40: 0 | J40: 0 | K40: 0 | L40: 0 | M40: 0 | N40: 0 | O40: 0 | P40: 0 | Q40: 0 | R40: 0 | S40: 0 | T40: 0 | U40: 0 | V40: ПР_проектир
B41: CAPEX | D41: млн. р. | E41: =SUM(F41:U41) -> 1274.18253 | F41: =F42+F43+F44 -> 0 | G41: =G42+G43+G44 -> 637.091265 | H41: 637.091265 | I41: 0 | J41: 0 | K41: 0 | L41: 0 | M41: 0 | N41: 0 | O41: 0 | P41: 0 | Q41: 0 | R41: 0 | S41: 0 | T41: 0 | U41: 0 | V41: ПР_CAPEX
B42: CAPEX (здание) | C42: 30 | E42: 1066.490778 | F42: 0 | G42: =ПР_CAPEX_сумма * ПР_CAPEX_доля_здание * ПР_CAPEX_процент_год * ПР_Ф_ИнвСтадия -> 533.2453888 | H42: 533.2453888 | I42: 0 | J42: 0 | K42: 0 | L42: 0 | M42: 0 | N42: 0 | O42: 0 | P42: 0 | Q42: 0 | R42: 0 | S42: 0 | T42: 0 | U42: 0 | V42: ПР_CAPEX_здание
B43: CAPEX (оборудование) | C43: 10 | E43: 127.418253 | F43: 0 | G43: =ПР_CAPEX_сумма * ПР_CAPEX_доля_оборуд * ПР_CAPEX_процент_год * ПР_Ф_ИнвСтадия -> 63.7091265 | H43: 63.7091265 | I43: 0 | J43: 0 | K43: 0 | L43: 0 | M43: 0 | N43: 0 | O43: 0 | P43: 0 | Q43: 0 | R43: 0 | S43: 0 | T43: 0 | U43: 0 | V43: ПР_CAPEX_оборуд
B44: CAPEX (малоценка) | C44: 3 | E44: 80.27349939 | F44: 0 | G44: =ПР_CAPEX_сумма * ПР_CAPEX_доля_малоц * ПР_CAPEX_процент_год * ПР_Ф_ИнвСтадия -> 40.13674969 | H44: 40.13674969 | I44: 0 | J44: 0 | K44: 0 | L44: 0 | M44: 0 | N44: 0 | O44: 0 | P44: 0 | Q44: 0 | R44: 0 | S44: 0 | T44: 0 | U44: 0 | V44: ПР_CAPEX_малоц
B45: OPEX (capex) | D45: млн. р. | E45: 0 | F45: 0 | G45: 0 | H45: 0 | I45: 0 | J45: 0 | K45: 0 | L45: 0 | M45: 0 | N45: 0 | O45: 0 | P45: 0 | Q45: 0 | R45: 0 | S45: 0 | T45: 0 | U45: 0
B46: Grant Project | C46: 1 | E46: 20 | F46: =$C$46 * F40 -> 20 | G46: =$C$46 * G40 -> 0 | H46: 0 | I46: 0 | J46: 0 | K46: 0 | L46: 0 | M46: 0 | N46: 0 | O46: 0 | P46: 0 | Q46: 0 | R46: 0 | S46: 0 | T46: 0 | U46: 0
B47: Grant | C47: 0.25 | D47: млн. р. | E47: 343.944711 | F47: =F46 + F41 / (1 + ПР_Налог_НДС) * ПР_КГ_процент -> 20 | G47: =G46 + G41 / (1 + ПР_Налог_НДС) * ПР_КГ_процент -> 161.9723555 | H47: 161.9723555 | I47: 0 | J47: 0 | K47: 0 | L47: 0 | M47: 0 | N47: 0 | O47: 0 | P47: 0 | Q47: 0 | R47: 0 | S47: 0 | T47: 0 | U47: 0 | V47: ПР_КапГрант
B48: НДС | D48: млн. р. | E48: 194.3668266 | F48: 0 | G48: =(G41 - G47 * ПР_Сцен_НДС_CAPEX) - (G41 - G47 * ПР_Сцен_НДС_CAPEX)/ 1.18 -> 97.18341331 | H48: =(H41 - H47 * ПР_Сцен_НДС_CAPEX) - (H41 - H47 * ПР_Сцен_НДС_CAPEX)/ 1.18 -> 97.18341331 | I48: =(I41 - I47) - (I41 - I47)/ 1.18 -> 0 | J48: 0 | K48: 0 | L48: 0 | M48: 0 | N48: 0 | O48: 0 | P48: 0 | Q48: 0 | R48: 0 | S48: 0 | T48: 0 | U48: 0 | V48: ПР_НДС_возмещ
B50: Потребность в финасировании | D50: млн. р. | E50: 755.8709924 | F50: =F40 + F41 + F45 - F47 - F48 -> 0 | G50: =G40 + G41 + G45 - G47 - G48 -> 377.9354962 | H50: 377.9354962 | I50: 0 | J50: 0 | K50: 0 | L50: 0 | M50: 0 | N50: =N40 + N41 + N45 - N47 - N48 -> 0 | O50: 0 | P50: 0 | Q50: 0 | R50: 0 | S50: 0 | T50: 0 | U50: 0 | V50: ПР_потреб_финанс
A52: =MAX($A$1:A51) + 1 -> 3 | B52: ФИНАНСИРОВАНИЕ ПРОЕКТА
B54: Привлечение Заемных средств | D54: млн. р. | E54: =SUM(F54:U54) -> 529.1096947 | F54: =F50 * $D$7 -> 0 | G54: 264.5548473 | H54: 264.5548473 | I54: 0 | J54: 0 | K54: 0 | L54: 0 | M54: 0 | N54: 0 | O54: 0 | P54: 0 | Q54: 0 | R54: 0 | S54: 0 | T54: 0 | U54: 0 | V54: ПР_ЗС_привлеч
B55: Привлечение Собственных средств | D55: млн. р. | E55: 226.7612977 | F55: =F50 * $D$8 -> 0 | G55: 113.3806489 | H55: 113.3806489 | I55: 0 | J55: 0 | K55: 0 | L55: 0 | M55: 0 | N55: 0 | O55: 0 | P55: 0 | Q55: 0 | R55: 0 | S55: 0 | T55: 0 | U55: 0 | V55: ПР_СС_привлеч
B57: Заемные средства
B58: Привлечение кредита 1 | D58: млн. р. | E58: =SUM(F58:U58) -> 264.5548473 | F58: 0 | G58: =$G$54 -> 264.5548473 | H58: 0 | I58: 0 | J58: 0 | K58: 0 | L58: 0 | M58: 0 | N58: 0 | O58: 0 | P58: 0 | Q58: 0 | R58: 0 | S58: 0 | T58: 0 | U58: 0
B59: Привлечение кредита 2 | D59: млн. р. | E59: 264.5548473 | F59: 0 | G59: 0 | H59: =$H$54 -> 264.5548473 | I59: 0 | J59: 0 | K59: 0 | L59: 0 | M59: 0 | N59: 0 | O59: 0 | P59: 0 | Q59: 0 | R59: 0 | S59: 0 | T59: 0 | U59: 0
B60: Капитализация процентов в baloon | D60: млн. р. | E60: 0 | F60: 0 | G60: =$E$58 * ПР_ЗС_ставка * ПР_Ф_ИнвСтадия * ПР_Сцен_капит_проц_baloon -> 0 | H60: 0 | I60: 0 | J60: 0 | K60: 0 | L60: 0 | M60: 0 | N60: 0 | O60: 0 | P60: 0 | Q60: 0 | R60: 0 | S60: 0 | T60: 0 | U60: 0
B61: Капитализация процентов в baloon | D61: млн. р. | E61: 0 | F61: 0 | G61: 0 | H61: =$E$59 * ПР_ЗС_ставка * ПР_Ф_ИнвСтадия * ПР_Сцен_капит_проц_baloon -> 0 | I61: 0 | J61: 0 | K61: 0 | L61: 0 | M61: 0 | N61: 0 | O61: 0 | P61: 0 | Q61: 0 | R61: 0 | S61: 0 | T61: 0 | U61: 0
B63: ВСЕГО ОД остаток 1 | E63: х | F63: 0 | G63: =F63+G58+G60 -> 264.5548473 | H63: =G63+H58+H60 -> 264.5548473 | I63: 0 | J63: 0 | K63: 0 | L63: 0 | M63: 0 | N63: 0 | O63: 0 | P63: 0 | Q63: 0 | R63: 0 | S63: 0 | T63: 0 | U63: 0
B64: ВСЕГО ОД остаток 2 | E64: х | F64: 0 | G64: =F64+G59+G61 -> 0 | H64: =G64+H59+H61 -> 264.5548473 | I64: 0 | J64: 0 | K64: 0 | L64: 0 | M64: 0 | N64: 0 | O64: 0 | P64: 0 | Q64: 0 | R64: 0 | S64: 0 | T64: 0 | U64: 0
I65: 1 | J65: 2 | K65: 3 | L65: 4 | M65: 5 | N65: 6 | O65: 7 | P65: 8 | Q65: 9 | R65: 10 | S65: 11 | T65: 12 | U65: 13
B66: Погашение кредита (ОД_ЗС) 1 | C66: =$C$5 -> 5 | D66: млн. р. | E66: =SUM(F66:U66) -> -264.5548473 | F66: =IFERROR(PPMT($C$67,F65,$C$66,$H$63,0),0) -> 0 | G66: 0 | H66: 0 | I66: =IFERROR(PPMT($C$67,I65,$C$66,$H$63,0),0) -> -41.2319415 | J66: =IFERROR(PPMT($C$67,J65,$C$66,$H$63,0),0) -> -46.38593419 | K66: -52.18417597 | L66: -58.70719796 | M66: -66.04559771 | N66: 0 | O66: 0 | P66: 0 | Q66: 0 | R66: 0 | S66: 0 | T66: 0 | U66: 0
B67: Погашение кредита (%) | C67: =ПР_ЗС_ставка -> 0.125 | D67: млн. р. | E67: -106.9516398 | F67: =(PMT(ПР_ЗС_ставка,$C$66,$H$63,0)-F66) * ПР_Ф_Экспл -> 0 | G67: 0 | H67: 0 | I67: -33.06935592 | J67: -27.91536323 | K67: -22.11712145 | L67: -15.59409946 | M67: -8.255699713 | N67: 0 | O67: 0 | P67: 0 | Q67: 0 | R67: 0 | S67: 0 | T67: 0 | U67: 0
I68: 1 | J68: 2 | K68: 3 | L68: 4 | M68: 5 | N68: 6 | O68: 7 | P68: 8 | Q68: 9 | R68: 10 | S68: 11 | T68: 12 | U68: 13
B69: Погашение кредита (ОД_ЗС) 1 | C69: =$C$5 -> 5 | D69: млн. р. | E69: -264.5548473 | F69: =IFERROR(PPMT($C$70,F68,$C$69,$H$64,0),0) -> 0 | G69: 0 | H69: 0 | I69: =IFERROR(PPMT($C$70,I68,$C$69,$H$64,0),0) -> -41.2319415 | J69: =IFERROR(PPMT($C$70,J68,$C$69,$H$64,0),0) -> -46.38593419 | K69: -52.18417597 | L69: -58.70719796 | M69: -66.04559771 | N69: 0 | O69: 0 | P69: 0 | Q69: 0 | R69: 0 | S69: 0 | T69: 0 | U69: 0
B70: Погашение кредита (%) | C70: =ПР_ЗС_ставка -> 0.125 | D70: млн. р. | E70: -106.9516398 | F70: =(PMT($C$70,$C$69,$H$64,0)-F69) * ПР_Ф_Экспл -> 0 | G70: 0 | H70: 0 | I70: -33.06935592 | J70: -27.91536323 | K70: -22.11712145 | L70: -15.59409946 | M70: -8.255699713 | N70: 0 | O70: 0 | P70: 0 | Q70: 0 | R70: 0 | S70: 0 | T70: 0 | U70: 0
B72: Погашение baloon | D72: млн. р.
B74: ВСЕГО ОД | D74: млн. р. | E74: -529.1096947 | F74: =F66+F69 -> 0 | G74: =G66+G69 -> 0 | H74: =H66+H69 -> 0 | I74: =I66+I69 -> -82.46388301 | J74: =J66+J69 -> -92.77186838 | K74: =K66+K69 -> -104.3683519 | L74: -117.4143959 | M74: -132.0911954 | N74: =N66+N69 -> 0 | O74: 0 | P74: 0 | Q74: 0 | R74: 0 | S74: 0 | T74: 0 | U74: 0 | V74: ПР_ЗС_ОД_возврат
B75: ВСЕГО % | D75: млн. р. | E75: -213.9032795 | F75: =F67+F70 -> 0 | G75: =G67 + G70 - $E$58 * ПР_ЗС_ставка * ПР_Ф_ИнвСтадия * (1 - ПР_Сцен_капит_проц_ЗС) -> 0 | H75: =H67 + H70 - $E$59 * ПР_ЗС_ставка * ПР_Ф_ИнвСтадия * (1 - ПР_Сцен_капит_проц_ЗС) - $E$58 * ПР_ЗС_ставка * ПР_Ф_ИнвСтадия * (1 - ПР_Сцен_капит_проц_ЗС) -> 0 | I75: =I67+I70 -> -66.13871183 | J75: =J67+J70 -> -55.83072646 | K75: =K67+K70 -> -44.23424291 | L75: =L67+L70 -> -31.18819892 | M75: -16.51139943 | N75: =N67+N70 -> 0 | O75: 0 | P75: 0 | Q75: 0 | R75: 0 | S75: 0 | T75: 0 | U75: 0 | V75: ПР_ЗС_проц_возврат
B76: ВСЕГО % капитализированные | D76: млн. р. | E76: 0 | F76: =F60+F61 -> 0 | G76: =G60+G61 -> 0 | H76: 0 | I76: 0 | J76: 0 | K76: 0 | L76: 0 | M76: 0 | N76: 0 | O76: 0 | P76: 0 | Q76: 0 | R76: 0 | S76: 0 | T76: 0 | U76: 0 | V76: ПР_ЗС_проц_капит
B78: ВСЕГО аннуитет (Заемные средства) | D78: млн. р. | E78: -743.0129742 | F78: =F74+F75 -> 0 | G78: 0 | H78: 0 | I78: -148.6025948 | J78: -148.6025948 | K78: -148.6025948 | L78: -148.6025948 | M78: -148.6025948 | N78: 0 | O78: 0 | P78: 0 | Q78: 0 | R78: 0 | S78: 0 | T78: 0 | U78: 0
B81: Собственные средства
B82: Привлечение кредита 1 | D82: млн. р. | E82: =SUM(F82:U82) -> 113.3806489 | F82: =F70 -> 0 | G82: =$G$55 -> 113.3806489 | H82: 0 | I82: 0 | J82: 0 | K82: 0 | L82: 0 | M82: 0 | N82: 0 | O82: 0 | P82: 0 | Q82: 0 | R82: 0 | S82: 0 | T82: 0 | U82: 0
B83: Привлечение кредита 2 | D83: млн. р. | E83: 113.3806489 | F83: 0 | G83: 0 | H83: =$H$55 -> 113.3806489 | I83: 0 | J83: 0 | K83: 0 | L83: 0 | M83: 0 | N83: 0 | O83: 0 | P83: 0 | Q83: 0 | R83: 0 | S83: 0 | T83: 0 | U83: 0
B84: Капитализация процентов 1 | D84: млн. р. | E84: 100.1529065 | F84: 0 | G84: =$E$82 * ПР_СС_ставка * ПР_Ф_ИнвСтадия + $E$58 * ПР_ЗС_ставка * ПР_Ф_ИнвСтадия * ПР_Сцен_капит_проц_ЗС -> 50.07645324 | H84: =$E$82 * ПР_СС_ставка * ПР_Ф_ИнвСтадия + $E$58 * ПР_ЗС_ставка * ПР_Ф_ИнвСтадия * ПР_Сцен_капит_проц_ЗС -> 50.07645324 | I84: =$E$82 * ПР_ЗС_ставка * ПР_Ф_ИнвСтадия -> 0 | J84: 0 | K84: 0 | L84: 0 | M84: 0 | N84: 0 | O84: 0 | P84: 0 | Q84: 0 | R84: 0 | S84: 0 | T84: 0 | U84: 0
B85: Капитализация процентов 2 | D85: млн. р. | E85: 50.07645324 | F85: 0 | G85: 0 | H85: =$E$83 * ПР_СС_ставка * ПР_Ф_ИнвСтадия + $E$59 * ПР_ЗС_ставка * ПР_Ф_ИнвСтадия * ПР_Сцен_капит_проц_ЗС -> 50.07645324 | I85: =$E$59 * ПР_ЗС_ставка * ПР_Ф_ИнвСтадия -> 0 | J85: 0 | K85: 0 | L85: 0 | M85: 0 | N85: 0 | O85: 0 | P85: 0 | Q85: 0 | R85: 0 | S85: 0 | T85: 0 | U85: 0
B87: ВСЕГО ОД остаток 1 | E87: х | F87: 0 | G87: =F87+G82+G84 -> 163.4571021 | H87: =G87+H82+H84 -> 213.5335553 | I87: 0 | J87: 0 | K87: 0 | L87: 0 | M87: 0 | N87: 0 | O87: 0 | P87: 0 | Q87: 0 | R87: 0 | S87: 0 | T87: 0 | U87: 0
B88: ВСЕГО ОД остаток 2 | E88: х | F88: 0 | G88: =F88+G83+G85 -> 0 | H88: =G88+H83+H85 -> 163.4571021 | I88: 0 | J88: 0 | K88: 0 | L88: 0 | M88: 0 | N88: 0 | O88: 0 | P88: 0 | Q88: 0 | R88: 0 | S88: 0 | T88: 0 | U88: 0
I89: 1 | J89: 2 | K89: 3 | L89: 4 | M89: 5 | N89: 6 | O89: 7 | P89: 8 | Q89: 9 | R89: 10 | S89: 11 | T89: 12 | U89: 13
B90: Погашение кредита (ОД_СС) 1 | C90: =$C$5 -> 5 | D90: млн. р. | E90: =SUM(F90:U90) -> -213.5335553 | F90: =IFERROR(PPMT($C$91,F89,$C$90,$H$87,0),0) -> 0 | G90: =IFERROR(PPMT($C$91,G89,$C$90,$H$87,0),0) -> 0 | H90: 0 | I90: -31.67034723 | J90: -36.42089931 | K90: -41.88403421 | L90: -48.16663934 | M90: -55.39163525 | N90: 0 | O90: 0 | P90: 0 | Q90: 0 | R90: 0 | S90: 0 | T90: 0 | U90: 0
B91: Погашение кредита (%) | C91: =ПР_СС_ставка -> 0.15 | D91: млн. р. | E91: -104.9683473 | F91: =(PMT(ПР_СС_ставка,$C$90,$H$87,0)-F90) * ПР_Ф_Экспл -> 0 | G91: 0 | H91: 0 | I91: -32.0300333 | J91: -27.27948122 | K91: -21.81634632 | L91: -15.53374119 | M91: -8.308745287 | N91: 0 | O91: 0 | P91: 0 | Q91: 0 | R91: 0 | S91: 0 | T91: 0 | U91: 0
I92: 1 | J92: 2 | K92: 3 | L92: 4 | M92: 5 | N92: 6 | O92: 7 | P92: 8 | Q92: 9 | R92: 10 | S92: 11 | T92: 12 | U92: 13
B93: Погашение кредита (ОД_СС) 2 | C93: =$C$5 -> 5 | D93: млн. р. | E93: -163.4571021 | F93: =IFERROR(PPMT($C$94,F92,$C$93,$H$88,0),0) -> 0 | G93: =IFERROR(PPMT($C$94,G92,$C$93,$H$88,0),0) -> 0 | H93: 0 | I93: -24.2432304 | J93: -27.87971496 | K93: -32.06167221 | L93: -36.87092304 | M93: -42.40156149 | N93: 0 | O93: 0 | P93: 0 | Q93: 0 | R93: 0 | S93: 0 | T93: 0 | U93: 0
B94: Погашение кредита (%) | C94: =ПР_СС_ставка -> 0.15 | D94: млн. р. | E94: -80.35187648 | F94: =(PMT(ПР_СС_ставка,$C$93,$H$88,0)-F93) * ПР_Ф_Экспл -> 0 | G94: 0 | H94: 0 | I94: -24.51856532 | J94: -20.88208075 | K94: -16.70012351 | L94: -11.89087268 | M94: -6.360234224 | N94: 0 | O94: 0 | P94: 0 | Q94: 0 | R94: 0 | S94: 0 | T94: 0 | U94: 0
B96: ВСЕГО ОД | D96: млн. р. | E96: -376.9906574 | F96: =F90+F93 -> 0 | G96: =G90+G93 -> 0 | H96: 0 | I96: -55.91357763 | J96: -64.30061428 | K96: -73.94570642 | L96: -85.03756238 | M96: -97.79319674 | N96: 0 | O96: 0 | P96: 0 | Q96: 0 | R96: 0 | S96: 0 | T96: 0 | U96: 0 | V96: ПР_СС_ОД_возврат
B97: ВСЕГО % | D97: млн. р. | E97: -185.3202238 | F97: =F91+F94 -> 0 | G97: =G91+G94 -> 0 | H97: 0 | I97: -56.54859862 | J97: -48.16156197 | K97: -38.51646983 | L97: -27.42461387 | M97: -14.66897951 | N97: 0 | O97: 0 | P97: 0 | Q97: 0 | R97: 0 | S97: 0 | T97: 0 | U97: 0 | V97: ПР_СС_проц_возврат
B98: ВСЕГО % капитализированные | D98: млн. р. | E98: 150.2293597 | F98: =F84+F85 -> 0 | G98: 50.07645324 | H98: 100.1529065 | I98: 0 | J98: 0 | K98: 0 | L98: 0 | M98: 0 | N98: 0 | O98: 0 | P98: 0 | Q98: 0 | R98: 0 | S98: 0 | T98: 0 | U98: 0 | V98: ПР_СС_проц_капит
B100: ВСЕГО аннуитет (Собственные средства) | D100: млн. р. | E100: -562.3108812 | F100: =F96+F97 -> 0 | G100: 0 | H100: 0 | I100: -112.4621762 | J100: -112.4621762 | K100: -112.4621762 | L100: -112.4621762 | M100: -112.4621762 | N100: 0 | O100: 0 | P100: 0 | Q100: 0 | R100: 0 | S100: 0 | T100: 0 | U100: 0
B102: Финансирование, СВОД
B104: ВСЕГО ОД | E104: =SUM(F104:U104) -> -906.1003521 | F104: =ПР_ЗС_ОД_возврат + ПР_СС_ОД_возврат -> 0 | G104: 0 | H104: 0 | I104: -138.3774606 | J104: -157.0724827 | K104: -178.3140584 | L104: -202.4519583 | M104: -229.8843922 | N104: 0 | O104: 0 | P104: 0 | Q104: 0 | R104: 0 | S104: 0 | T104: 0 | U104: 0
B105: ВСЕГО % | E105: -399.2235033 | F105: =ПР_ЗС_проц_возврат + ПР_СС_проц_возврат -> 0 | G105: 0 | H105: 0 | I105: -122.6873104 | J105: -103.9922884 | K105: -82.75071274 | L105: -58.61281279 | M105: -31.18037894 | N105: 0 | O105: 0 | P105: 0 | Q105: 0 | R105: 0 | S105: 0 | T105: 0 | U105: 0
B106: ВСЕГО % капитализированные | E106: 150.2293597 | F106: =ПР_ЗС_проц_капит + ПР_СС_проц_капит -> 0 | G106: 50.07645324 | H106: 100.1529065 | I106: 0 | J106: 0 | K106: 0 | L106: 0 | M106: 0 | N106: 0 | O106: 0 | P106: 0 | Q106: 0 | R106: 0 | S106: 0 | T106: 0 | U106: 0
A108: =MAX($A$1:A107) + 1 -> 4 | B108: ОПЕРАЦИОННЫЕ ЗАТРАТЫ
B110: OPEX | E110: =SUM(F110:U110) -> 5 | F110: =ПР_OPEX_год * ПР_Ф_Экспл -> 0 | G110: 0 | H110: 0 | I110: 1 | J110: 1 | K110: 1 | L110: 1 | M110: 1 | N110: 0 | O110: 0 | P110: 0 | Q110: 0 | R110: 0 | S110: 0 | T110: 0 | U110: 0 | V110: ПР_OPEX
A112: =MAX($A$1:A111) + 1 -> 5 | B112: РАСЧЕТ СУБСИДИЙ ПО КАПГРАНТУ И ИНВЕСТИЦИОННОМУ ПЛАТЕЖУ
B114: Субсидия на возмещение затрат на создание объекта на Инвестиционной стадии | E114: =SUM(F114:U114) -> 343.944711 | F114: =ПР_КапГрант -> 20 | G114: 161.9723555 | H114: 161.9723555 | I114: 0 | J114: 0 | K114: 0 | L114: 0 | M114: 0 | N114: 0 | O114: 0 | P114: 0 | Q114: 0 | R114: 0 | S114: 0 | T114: 0 | U114: 0
B115: Субсидия на возмещение затрат на создание объекта в части банковских процентов | E115: 213.9032795 | F115: =-ПР_ЗС_проц_возврат -> 0 | G115: 0 | H115: 0 | I115: 66.13871183 | J115: 55.83072646 | K115: 44.23424291 | L115: 31.18819892 | M115: 16.51139943 | N115: 0 | O115: 0 | P115: 0 | Q115: 0 | R115: 0 | S115: 0 | T115: 0 | U115: 0 | V115: ПР_С_КГ_Экспл
B116: Субсидия на исполнение обязательств Концедента по выплате Инвестиционного платежа по концессионному соглашению | E116: 1287.87628 | F116: =-(ПР_ЗС_ОД_возврат + ПР_СС_ОД_возврат + ПР_СС_проц_возврат) * (1 + ПР_Налог_НДС) -> 0 | G116: 0 | H116: 0 | I116: 230.0127499 | J116: 242.1761727 | K116: 255.8600233 | L116: 271.2543552 | M116: 288.5729786 | N116: 0 | O116: 0 | P116: 0 | Q116: 0 | R116: 0 | S116: 0 | T116: 0 | U116: 0 | V116: ПР_С_ПК_ИП
A118: =MAX($A$1:A117) + 1 -> 6 | B118: РАСЧЕТ СУБСИДИИ ПО ОПЕРАЦИОННОМУ ПЛАТЕЖУ
B120: Выручка | E120: =SUM(F120:U120) -> 1241.750178 | F120: =F116 / (1 + ПР_Налог_НДС) + F139 / (1 + ПР_Налог_НДС) -> 0 | G120: 0 | H120: 0 | I120: 211.6055439 | J120: 226.5872847 | K120: 243.4941621 | L120: 269.2641392 | M120: 290.799047 | N120: 1.586417927e-07 | O120: 2.072667457e-07 | P120: 2.62912803e-07 | Q120: 3.265949606e-07 | R120: 3.994751202e-07 | S120: 0 | T120: 0 | U120: 0 | V120: ПР_Выручка
B121: Прочие доходы (корректировка по банковским процентам) | E121: 213.9032795 | F121: =F115 -> 0 | G121: =G115 -> 0 | H121: 0 | I121: 66.13871183 | J121: 55.83072646 | K121: 44.23424291 | L121: 31.18819892 | M121: 16.51139943 | N121: 0 | O121: 0 | P121: 0 | Q121: 0 | R121: 0 | S121: 0 | T121: 0 | U121: 0
B122: Расходы на эксплуатацию | E122: 4.237288136 | F122: =ПР_OPEX / (1 + ПР_Налог_НДС) -> 0 | G122: 0 | H122: 0 | I122: 0.8474576271 | J122: 0.8474576271 | K122: 0.8474576271 | L122: 0.8474576271 | M122: 0.8474576271 | N122: 0 | O122: 0 | P122: 0 | Q122: 0 | R122: 0 | S122: 0 | T122: 0 | U122: 0
B123: Амортизация | E123: 321.7310888 | F123: =(SUM(ПР_CAPEX_здание) / ПР_CAPEX_амор_здание * F124 + SUM(ПР_CAPEX_оборуд) / ПР_CAPEX_амор_оборуд * F125 + SUM(ПР_CAPEX_малоц) / ПР_CAPEX_амор_малоц * F126) * ПР_Ф_Экспл -> 0 | G123: 0 | H123: 0 | I123: 75.04935102 | J123: 75.04935102 | K123: 75.04935102 | L123: 48.29151789 | M123: 48.29151789 | N123: 0 | O123: 0 | P123: 0 | Q123: 0 | R123: 0 | S123: 0 | T123: 0 | U123: 0
B124: Флаг амортизация здание | E124: 13 | F124: 0 | G124: 0 | H124: 0 | I124: 1 | J124: 1 | K124: 1 | L124: 1 | M124: 1 | N124: 1 | O124: 1 | P124: 1 | Q124: 1 | R124: 1 | S124: 1 | T124: 1 | U124: 1
B125: Флаг амортизация оборудование | E125: 10 | F125: 0 | G125: 0 | H125: 0 | I125: 1 | J125: 1 | K125: 1 | L125: 1 | M125: 1 | N125: 1 | O125: 1 | P125: 1 | Q125: 1 | R125: 1 | S125: 0 | T125: 0 | U125: 0
B126: Флаг амортизация малоценка | E126: 3 | F126: 0 | G126: 0 | H126: 0 | I126: 1 | J126: 1 | K126: 1 | L126: 0 | M126: 0 | N126: 0 | O126: 0 | P126: 0 | Q126: 0 | R126: 0 | S126: 0 | T126: 0 | U126: 0
B127: Проценты | E127: -399.2235033 | F127: =F105 -> 0 | G127: 0 | H127: 0 | I127: -122.6873104 | J127: -103.9922884 | K127: -82.75071274 | L127: -58.61281279 | M127: -31.18037894 | N127: 0 | O127: 0 | P127: 0 | Q127: 0 | R127: 0 | S127: 0 | T127: 0 | U127: 0
B129: Прибыль до НО | E129: 730.4615774 | F129: =F120+F121-F122-F123+F127 -> 0 | G129: =G120+G121-G122-G123+G127 -> 0 | H129: 0 | I129: 79.1601366 | J129: 102.5289141 | K129: 129.0808836 | L129: 192.7005498 | M129: 226.991092 | N129: 1.586417927e-07 | O129: 2.072667457e-07 | P129: 2.62912803e-07 | Q129: 3.265949606e-07 | R129: 3.994751202e-07 | S129: 0 | T129: 0 | U129: 0
B130: Налог на прибыль | C130: 0.2 | E130: 146.0923155 | F130: =$C$130 * F129 -> 0 | G130: =$C$130 * G129 -> 0 | H130: 0 | I130: 15.83202732 | J130: 20.50578281 | K130: 25.81617672 | L130: 38.54010996 | M130: 45.3982184 | N130: =$C$130 * N129 -> 3.172835855e-08 | O130: 4.145334915e-08 | P130: 5.25825606e-08 | Q130: 6.531899213e-08 | R130: 7.989502405e-08 | S130: 0 | T130: 0 | U130: 0 | V130: ПР_Расх_НП
B131: Прибыль после НО (дивиденды) | E131: 584.3692619 | F131: =F129-F130 -> 0 | G131: =G129-G130 -> 0 | H131: 0 | I131: 63.32810928 | J131: 82.02313124 | K131: 103.2647069 | L131: 154.1604398 | M131: 181.5928736 | N131: =N129-N130 -> 1.269134342e-07 | O131: 1.658133966e-07 | P131: 2.103302424e-07 | Q131: 2.612759685e-07 | R131: 3.195800962e-07 | S131: 0 | T131: 0 | U131: 0
B133: Налог на прибыль | E133: 146.0923141 | F133: 0 | G133: 0 | H133: 0 | I133: 15.83202698 | J133: 20.50578241 | K133: 25.81617625 | L133: 38.54010939 | M133: 45.39821775 | N133: 1.586417927e-07 | O133: 2.072667457e-07 | P133: 2.62912803e-07 | Q133: 3.265949606e-07 | R133: 3.994751202e-07 | S133: 0 | T133: 0 | U133: 0 | V133: ПР_Расх_НП_paste
B134: Проверка (точность до 0,1 млн) | F134: =F133=F130 -> TRUE | G134: =ROUND(G133,1)=ROUND(G130,1) -> TRUE | H134: =ROUND(H133,1)=ROUND(H130,1) -> TRUE | I134: TRUE | J134: TRUE | K134: TRUE | L134: TRUE | M134: TRUE | N134: =ROUND(N133,1)=ROUND(N130,1) -> TRUE | O134: TRUE | P134: TRUE | Q134: TRUE | R134: TRUE | S134: TRUE | T134: TRUE | U134: TRUE
B135: Проверка по всем периодам | C135: =SUM(F135:U135)=COUNT(ПР_год) -> TRUE | F135: =F134 * 1 -> 1 | G135: =G134 * 1 -> 1 | H135: 1 | I135: 1 | J135: 1 | K135: 1 | L135: 1 | M135: 1 | N135: 1 | O135: 1 | P135: 1 | Q135: 1 | R135: 1 | S135: 1 | T135: 1 | U135: 1
A137: =MAX($A$1:A135) + 1 -> 7 | B137: БЮДЖЕТНЫЕ РАСХОДЫ
B139: Субсидия на исполнение обязательств Концедента по выплате Операционного платежа по концессионному соглашению | E139: 177.3889307 | F139: =F110 + F133 * (1 + ПР_Налог_НДС) -> 0 | G139: 0 | H139: 0 | I139: 19.68179183 | J139: 25.19682324 | K139: 31.46308798 | L139: 46.47732908 | M139: 54.56989695 | N139: 1.871973154e-07 | O139: 2.4457476e-07 | P139: 3.102371075e-07 | Q139: 3.853820536e-07 | R139: 4.713806419e-07 | S139: 0 | T139: 0 | U139: 0 | V139: ПР_С_ПК_ИП
B141: Субсидия на возмещение затрат на создание объекта на Инвестиционной стадии | E141: 343.944711 | F141: =F114 -> 20 | G141: 161.9723555 | H141: 161.9723555 | I141: 0 | J141: 0 | K141: 0 | L141: 0 | M141: 0 | N141: 0 | O141: 0 | P141: 0 | Q141: 0 | R141: 0 | S141: 0 | T141: 0 | U141: 0
B142: Субсидия на возмещение затрат на создание объекта в части банковских процентов | E142: 213.9032795 | F142: =F115 -> 0 | G142: 0 | H142: 0 | I142: 66.13871183 | J142: 55.83072646 | K142: 44.23424291 | L142: 31.18819892 | M142: 16.51139943 | N142: 0 | O142: 0 | P142: 0 | Q142: 0 | R142: 0 | S142: 0 | T142: 0 | U142: 0
B143: Субсидия на исполнение обязательств Концедента по выплате Инвестиционного платежа по концессионному соглашению | E143: 1287.87628 | F143: =F116 -> 0 | G143: 0 | H143: 0 | I143: 230.0127499 | J143: 242.1761727 | K143: 255.8600233 | L143: 271.2543552 | M143: 288.5729786 | N143: 0 | O143: 0 | P143: 0 | Q143: 0 | R143: 0 | S143: 0 | T143: 0 | U143: 0
B145: ВСЕГО Субсидии | E145: 2023.113201 | F145: =SUM(F139:F143) -> 20 | G145: =SUM(G139:G143) -> 161.9723555 | H145: 161.9723555 | I145: 315.8332536 | J145: 323.2037224 | K145: 331.5573541 | L145: 348.9198832 | M145: 359.6542749 | N145: =SUM(N139:N143) -> 1.871973154e-07 | O145: 2.4457476e-07 | P145: 3.102371075e-07 | Q145: 3.853820536e-07 | R145: 4.713806419e-07 | S145: 0 | T145: 0 | U145: 0 | V145: ПР_Расх_бюджета
E146: ="* Стоимость ШКОЛЫ = " & (E40+E41) & " млн. рублей (удорожание " & ROUND((E145 - (E40+E41)),0) & " млн. рублей)" -> * Стоимость ШКОЛЫ = 1294,18253 млн. рублей (удорожание 729 млн. рублей)
A147: =MAX($A$1:A146) + 1 -> 8 | B147: ПРОВЕРКА НДС
B149: НДС из фед.бюджета | E149: =SUM(F149:U149) -> 195.1295385 | F149: =F48 + F110 - F110 / (1 + ПР_Налог_НДС) -> 0 | G149: 97.18341331 | H149: 97.18341331 | I149: 0.1525423729 | J149: 0.1525423729 | K149: 0.1525423729 | L149: 0.1525423729 | M149: 0.1525423729 | N149: 0 | O149: 0 | P149: 0 | Q149: 0 | R149: 0 | S149: 0 | T149: 0 | U149: 0
B150: НДС в фед.бюджет | E150: 223.5150321 | F150: =F143 - F143 / (1 + ПР_Налог_НДС) + F139 - F139 / (1 + ПР_Налог_НДС) -> 0 | G150: 0 | H150: 0 | I150: 38.08899789 | J150: 40.78571124 | K150: 43.82894917 | L150: 48.46754505 | M150: 52.34382847 | N150: 2.855552269e-08 | O150: 3.730801423e-08 | P150: 4.732430454e-08 | Q150: 5.878709292e-08 | R150: 7.190552164e-08 | S150: 0 | T150: 0 | U150: 0
B152: ОБОРОТ по НДС | C152: =E152 > 0 -> TRUE | E152: =SUM(F152:U152) -> 28.3854936 | F152: =F150-F149 -> 0 | G152: =G150-G149 -> -97.18341331 | H152: -97.18341331 | I152: 37.93645552 | J152: 40.63316887 | K152: 43.6764068 | L152: 48.31500268 | M152: 52.19128609 | N152: 2.855552269e-08 | O152: 3.730801423e-08 | P152: 4.732430454e-08 | Q152: 5.878709292e-08 | R152: 7.190552164e-08 | S152: 0 | T152: 0 | U152: 0
A154: =MAX($A$1:A153) + 1 -> 9 | B154: РАСЧЕТ УДОРОЖАНИЯ
B156: Капитальные затраты | E156: =SUM(F156:U156) -> 1274.18253 | F156: =ПР_CAPEX -> 0 | G156: 637.091265 | H156: 637.091265 | I156: 0 | J156: 0 | K156: 0 | L156: 0 | M156: 0 | N156: 0 | O156: 0 | P156: 0 | Q156: 0 | R156: 0 | S156: 0 | T156: 0 | U156: 0
B157: Проектирование | E157: 20 | F157: =ПР_проектир -> 20 | G157: 0 | H157: 0 | I157: 0 | J157: 0 | K157: 0 | L157: 0 | M157: 0 | N157: 0 | O157: 0 | P157: 0 | Q157: 0 | R157: 0 | S157: 0 | T157: 0 | U157: 0
B158: ВСЕГО | E158: 1294.18253 | F158: =F157+F156 -> 20 | G158: =G157+G156 -> 637.091265 | H158: 637.091265 | I158: 0 | J158: 0 | K158: 0 | L158: 0 | M158: 0 | N158: 0 | O158: 0 | P158: 0 | Q158: 0 | R158: 0 | S158: 0 | T158: 0 | U158: 0
B160: БЮДЖЕТНЫЕ РАСХОДЫ (концессионное соглашение) | E160: =SUM(F160:U160) -> 2023.113201 | F160: =F161 + F162 + F163 + F164 -> 20 | G160: =G161 + G162 + G163 + G164 -> 161.9723555 | H160: 161.9723555 | I160: 315.8332536 | J160: 323.2037224 | K160: 331.5573541 | L160: 348.9198832 | M160: 359.6542749 | N160: 1.871973154e-07 | O160: 2.4457476e-07 | P160: 3.102371075e-07 | Q160: 3.853820536e-07 | R160: 4.713806419e-07 | S160: 0 | T160: 0 | U160: 0
B161: Субсидия на возмещение затрат на создание объекта на Инвестиционной стадии | E161: =SUM(F161:U161) -> 343.944711 | F161: =F141 -> 20 | G161: 161.9723555 | H161: 161.9723555 | I161: 0 | J161: 0 | K161: 0 | L161: 0 | M161: 0 | N161: 0 | O161: 0 | P161: 0 | Q161: 0 | R161: 0 | S161: 0 | T161: 0 | U161: 0
B162: Субсидия на возмещение затрат на создание объекта в части банковских процентов | E162: =SUM(F162:U162) -> 213.9032795 | F162: =F142 -> 0 | G162: 0 | H162: 0 | I162: 66.13871183 | J162: 55.83072646 | K162: 44.23424291 | L162: 31.18819892 | M162: 16.51139943 | N162: 0 | O162: 0 | P162: 0 | Q162: 0 | R162: 0 | S162: 0 | T162: 0 | U162: 0
B163: Субсидия на исполнение обязательств Концедента по выплате Инвестиционного платежа по концессионному соглашению | E163: =SUM(F163:U163) -> 1287.87628 | F163: =F143 -> 0 | G163: 0 | H163: 0 | I163: 230.0127499 | J163: 242.1761727 | K163: 255.8600233 | L163: 271.2543552 | M163: 288.5729786 | N163: 0 | O163: 0 | P163: 0 | Q163: 0 | R163: 0 | S163: 0 | T163: 0 | U163: 0
B164: Субсидия на исполнение обязательств Концедента по выплате Операционного платежа по концессионному соглашению | E164: =SUM(F164:U164) -> 177.3889307 | F164: =F139 -> 0 | G164: 0 | H164: 0 | I164: 19.68179183 | J164: 25.19682324 | K164: 31.46308798 | L164: 46.47732908 | M164: 54.56989695 | N164: 1.871973154e-07 | O164: 2.4457476e-07 | P164: 3.102371075e-07 | Q164: 3.853820536e-07 | R164: 4.713806419e-07 | S164: 0 | T164: 0 | U164: 0
B166: ВСЕГО удорожание, в том числе | E166: =SUM(F166:U166) -> 918.2974974 | F166: =F175 + F170 + F168 + F167 - ПР_OPEX -> 0 | G166: 50.07645324 | H166: 100.1529065 | I166: 176.4557929 | J166: 165.1312397 | K166: 152.2432958 | L166: 145.4679249 | M166: 128.7698828 | N166: 1.871973154e-07 | O166: 2.4457476e-07 | P166: 3.102371075e-07 | Q166: 3.853820536e-07 | R166: 4.713806419e-07 | S166: 0 | T166: 0 | U166: 0 | V166: ПР_Удорож
B167: Банковские проценты | E167: 213.9032795 | F167: =(ПР_ЗС_проц_возврат + ПР_ЗС_проц_капит) * -1 -> 0 | G167: 0 | H167: 0 | I167: 66.13871183 | J167: 55.83072646 | K167: 44.23424291 | L167: 31.18819892 | M167: 16.51139943 | N167: 0 | O167: 0 | P167: 0 | Q167: 0 | R167: 0 | S167: 0 | T167: 0 | U167: 0
B168: Проценты по Собственным средствам | E168: 335.5495835 | F168: =ПР_СС_проц_возврат * -1 + ПР_СС_проц_капит -> 0 | G168: 50.07645324 | H168: 100.1529065 | I168: 56.54859862 | J168: 48.16156197 | K168: 38.51646983 | L168: 27.42461387 | M168: 14.66897951 | N168: 0 | O168: 0 | P168: 0 | Q168: 0 | R168: 0 | S168: 0 | T168: 0 | U168: 0
B170: НДС по инвестиционному платежу | E170: 196.4557037 | F170: =F143-F143/(1+ПР_Налог_НДС) -> 0 | G170: 0 | H170: 0 | I170: 35.08669067 | J170: 36.94212803 | K170: 39.02949507 | L170: 41.37778299 | M170: 44.0196069 | N170: 0 | O170: 0 | P170: 0 | Q170: 0 | R170: 0 | S170: 0 | T170: 0 | U170: 0
B172: Уплаченный НДС в проекте | E172: =SUM(F172:U172) -> 223.5150321 | F172: =F170+F178 -> 0 | G172: =G170+G178 -> 0 | H172: 0 | I172: 38.08899789 | J172: 40.78571124 | K172: 43.82894917 | L172: 48.46754505 | M172: 52.34382847 | N172: 2.855552269e-08 | O172: 3.730801423e-08 | P172: 4.732430454e-08 | Q172: 5.878709292e-08 | R172: 7.190552164e-08 | S172: 0 | T172: 0 | U172: 0 | V172: ПР_НДС_уплач
B173: Возмещение НДС в проекте | E173: -195.1295385 | F173: =(ПР_НДС_возмещ + (ПР_OPEX -ПР_OPEX / (1 + ПР_Налог_НДС))) * -1 -> 0 | G173: -97.18341331 | H173: -97.18341331 | I173: -0.1525423729 | J173: -0.1525423729 | K173: -0.1525423729 | L173: -0.1525423729 | M173: -0.1525423729 | N173: 0 | O173: 0 | P173: 0 | Q173: 0 | R173: 0 | S173: 0 | T173: 0 | U173: 0 | V173: ПР_НДС_возм
B175: Операционный платеж, в т.ч. | E175: 177.3889307 | F175: =F139 -> 0 | G175: 0 | H175: 0 | I175: 19.68179183 | J175: 25.19682324 | K175: 31.46308798 | L175: 46.47732908 | M175: 54.56989695 | N175: 1.871973154e-07 | O175: 2.4457476e-07 | P175: 3.102371075e-07 | Q175: 3.853820536e-07 | R175: 4.713806419e-07 | S175: 0 | T175: 0 | U175: 0
B176: возмещение налога на прибыль | E176: 146.0923141 | F176: =F133 -> 0 | G176: 0 | H176: 0 | I176: 15.83202698 | J176: 20.50578241 | K176: 25.81617625 | L176: 38.54010939 | M176: 45.39821775 | N176: 1.586417927e-07 | O176: 2.072667457e-07 | P176: 2.62912803e-07 | Q176: 3.265949606e-07 | R176: 3.994751202e-07 | S176: 0 | T176: 0 | U176: 0
B177: возмещение эксплуатационных расходов | E177: 4.237288136 | F177: =ПР_OPEX / (1 + ПР_Налог_НДС) -> 0 | G177: 0 | H177: 0 | I177: 0.8474576271 | J177: 0.8474576271 | K177: 0.8474576271 | L177: 0.8474576271 | M177: 0.8474576271 | N177: 0 | O177: 0 | P177: 0 | Q177: 0 | R177: 0 | S177: 0 | T177: 0 | U177: 0
B178: НДС в Операционном платеже | E178: 27.05932841 | F178: =F139 - F139 / (1 + ПР_Налог_НДС) -> 0 | G178: 0 | H178: 0 | I178: 3.002307229 | J178: 3.843583207 | K178: 4.799454098 | L178: 7.089762064 | M178: 8.324221568 | N178: 2.855552269e-08 | O178: 3.730801423e-08 | P178: 4.732430454e-08 | Q178: 5.878709292e-08 | R178: 7.190552164e-08 | S178: 0 | T178: 0 | U178: 0
A180: =MAX($A$1:A179) + 1 -> 10 | B180: ИНТЕГРАЛЬНЫЕ ПОКАЗАТЕЛИ ПРОЕКТА
B182: PV бюджетных расходов по КС | C182: =NPV(ПР_ст_диск,F182:U182) -> 1148.093815 | D182: ПР_PV_бюджета | E182: =SUM(F182:U182) -> 2023.113199 | F182: =F160 * ПР_Ф_проекта -> 20 | G182: 161.9723555 | H182: 161.9723555 | I182: 315.8332536 | J182: 323.2037224 | K182: 331.5573541 | L182: 348.9198832 | M182: 359.6542749 | N182: 0 | O182: 0 | P182: 0 | Q182: 0 | R182: 0 | S182: 0 | T182: 0 | U182: 0
B184: IRR проекта для бюджета | C184: =IRR(F184:U184) -> 0.1050536562 | D184: ПР_IRR_проекта | E184: =SUM(F184:U184) -> 577.8383564 | F184: =(-F158 - G158 + F160 - F176 - ПР_OPEX) * ПР_Ф_проекта -> -637.091265 | G184: =(-H158 + G160 - G176 - ПР_OPEX) * ПР_Ф_проекта -> -475.1189095 | H184: =(H160 - H176 - ПР_OPEX) * ПР_Ф_проекта -> 161.9723555 | I184: 299.0012266 | J184: 301.69794 | K184: 304.7411779 | L184: 309.3797738 | M184: 313.2560572 | N184: 0 | O184: 0 | P184: 0 | Q184: 0 | R184: 0 | S184: 0 | T184: 0 | U184: 0
B185: всего вложений | E185: -1294.18253 | F185: =-F158 * ПР_Ф_проекта -> -20 | G185: -637.091265 | H185: -637.091265 | I185: 0 | J185: 0 | K185: 0 | L185: 0 | M185: 0 | N185: 0 | O185: 0 | P185: 0 | Q185: 0 | R185: 0 | S185: 0 | T185: 0 | U185: 0
B186: бюджетные доходы (налог на прибыль) | E186: -146.0923128 | F186: =-F176 * ПР_Ф_проекта -> 0 | G186: 0 | H186: 0 | I186: -15.83202698 | J186: -20.50578241 | K186: -25.81617625 | L186: -38.54010939 | M186: -45.39821775 | N186: 0 | O186: 0 | P186: 0 | Q186: 0 | R186: 0 | S186: 0 | T186: 0 | U186: 0
B187: эксплуатация | E187: -5 | F187: =-ПР_OPEX * ПР_Ф_проекта -> 0 | G187: 0 | H187: 0 | I187: -1 | J187: -1 | K187: -1 | L187: -1 | M187: -1 | N187: 0 | O187: 0 | P187: 0 | Q187: 0 | R187: 0 | S187: 0 | T187: 0 | U187: 0
B188: Бюджетные расходы | E188: 2023.113199 | F188: =F160 * ПР_Ф_проекта -> 20 | G188: 161.9723555 | H188: 161.9723555 | I188: 315.8332536 | J188: 323.2037224 | K188: 331.5573541 | L188: 348.9198832 | M188: 359.6542749 | N188: 0 | O188: 0 | P188: 0 | Q188: 0 | R188: 0 | S188: 0 | T188: 0 | U188: 0
B189: Проверка | F189: =F185+F186+F187+F188+G185=F184 -> TRUE | G189: =G185+G186+G187+G188=G184 -> TRUE | H189: =H186+H187+H188=H184 -> TRUE | I189: =I185+I186+I187+I188=I184 -> TRUE | J189: TRUE | K189: TRUE | L189: TRUE | M189: TRUE | N189: TRUE | O189: TRUE | P189: TRUE | Q189: TRUE | R189: TRUE | S189: TRUE | T189: TRUE | U189: TRUE
B190: Проверка | C190: =SUM(F190:U190)=COUNT(ПР_год) -> TRUE | F190: =F189 * 1 -> 1 | G190: =G189 * 1 -> 1 | H190: 1 | I190: 1 | J190: 1 | K190: 1 | L190: 1 | M190: 1 | N190: 1 | O190: 1 | P190: 1 | Q190: 1 | R190: 1 | S190: 1 | T190: 1 | U190: 1
A192: =MAX($A$1:A191) + 1 -> 11 | B192: ПОТОКИ ИНВЕСТОРА
B194: FCFE | E194: =SUM(F194:U194) -> 185.3202238 | F194: =(-F82 - F83 - F84 - F85 - F90 - F91 - F93 - F94) * ПР_Ф_проекта -> 0 | G194: =(-G82 - G83 - F84 - F85 - G90 - G91 - G93 - G94) * ПР_Ф_проекта -> -113.3806489 | H194: -163.4571021 | I194: 12.30926976 | J194: 112.4621762 | K194: 112.4621762 | L194: 112.4621762 | M194: 112.4621762 | N194: 0 | O194: 0 | P194: 0 | Q194: 0 | R194: 0 | S194: 0 | T194: 0 | U194: 0 | V194: * (инвестор привлекает долг под капитализацию процентов в конце периода)
B195: IRR инвестора | C195: =IRR(F194:U194) -> 0.1457923391
A197: =MAX($A$1:A196) + 1 -> 12 | B197: БЮДЖЕТ ДВИЖЕНИЯ ДЕНЕЖНЫХ СРЕДСТВ
B199: Операционный поток
B200: Выручка | E200: =SUM(F200:U200) -> 1465.265209 | F200: =ПР_Выручка * (1 + ПР_Налог_НДС) * ПР_Ф_проекта -> 0 | G200: 0 | H200: 0 | I200: 249.6945418 | J200: 267.3729959 | K200: 287.3231112 | L200: 317.7316842 | M200: 343.1428755 | N200: 0 | O200: 0 | P200: 0 | Q200: 0 | R200: 0 | S200: 0 | T200: 0 | U200: 0
B201: Расходы на эксплуатацию | E201: -5 | F201: =ПР_OPEX * -1 * ПР_Ф_проекта -> 0 | G201: 0 | H201: 0 | I201: -1 | J201: -1 | K201: -1 | L201: -1 | M201: -1 | N201: 0 | O201: 0 | P201: 0 | Q201: 0 | R201: 0 | S201: 0 | T201: 0 | U201: 0
B202: Проценты | E202: -399.2235033 | F202: =ПР_ЗС_проц_возврат + ПР_СС_проц_возврат * ПР_Ф_проекта -> 0 | G202: 0 | H202: 0 | I202: -122.6873104 | J202: -103.9922884 | K202: -82.75071274 | L202: -58.61281279 | M202: -31.18037894 | N202: 0 | O202: 0 | P202: 0 | Q202: 0 | R202: 0 | S202: 0 | T202: 0 | U202: 0
B203: Возмещение банковских процентов | E203: 213.9032795 | F203: =F162 * ПР_Ф_проекта -> 0 | G203: 0 | H203: 0 | I203: 66.13871183 | J203: 55.83072646 | K203: 44.23424291 | L203: 31.18819892 | M203: 16.51139943 | N203: 0 | O203: 0 | P203: 0 | Q203: 0 | R203: 0 | S203: 0 | T203: 0 | U203: 0
B204: Налог на прибыль | E204: -146.0923155 | F204: =F130 * -1 -> 0 | G204: 0 | H204: 0 | I204: -15.83202732 | J204: -20.50578281 | K204: -25.81617672 | L204: -38.54010996 | M204: -45.3982184 | N204: -3.172835855e-08 | O204: -4.145334915e-08 | P204: -5.25825606e-08 | Q204: -6.531899213e-08 | R204: -7.989502405e-08 | S204: 0 | T204: 0 | U204: 0
B205: Оборот по НДС | E205: -28.3854936 | F205: =F152 * -1 -> 0 | G205: 97.18341331 | H205: 97.18341331 | I205: -37.93645552 | J205: -40.63316887 | K205: -43.6764068 | L205: -48.31500268 | M205: -52.19128609 | N205: -2.855552269e-08 | O205: -3.730801423e-08 | P205: -4.732430454e-08 | Q205: -5.878709292e-08 | R205: -7.190552164e-08 | S205: 0 | T205: 0 | U205: 0
B206: Чистый денежный поток в результате операционной деятельности | E206: 1100.467176 | F206: =SUM(F200:F205) -> 0 | G206: =SUM(G200:G205) -> 97.18341331 | H206: 97.18341331 | I206: 138.3774603 | J206: 157.0724823 | K206: 178.3140579 | L206: 202.4519577 | M206: 229.8843915 | N206: -6.028388124e-08 | O206: -7.876136338e-08 | P206: -9.990686513e-08 | Q206: -1.24106085e-07 | R206: -1.518005457e-07 | S206: 0 | T206: 0 | U206: 0
B208: Инвестиционный поток
B209: Проектирование | E209: =SUM(F209:U209) -> -20 | F209: =ПР_проектир * -1 * ПР_Ф_проекта -> -20 | G209: 0 | H209: 0 | I209: 0 | J209: 0 | K209: 0 | L209: 0 | M209: 0 | N209: 0 | O209: 0 | P209: 0 | Q209: 0 | R209: 0 | S209: 0 | T209: 0 | U209: 0
B210: Капитальные затраты | E210: -1274.18253 | F210: =ПР_CAPEX * -1 * ПР_Ф_проекта -> 0 | G210: -637.091265 | H210: -637.091265 | I210: 0 | J210: 0 | K210: 0 | L210: 0 | M210: 0 | N210: 0 | O210: 0 | P210: 0 | Q210: 0 | R210: 0 | S210: 0 | T210: 0 | U210: 0
B211: Капитальный грант | E211: 343.944711 | F211: =ПР_КапГрант * ПР_Ф_проекта -> 20 | G211: 161.9723555 | H211: 161.9723555 | I211: 0 | J211: 0 | K211: 0 | L211: 0 | M211: 0 | N211: 0 | O211: 0 | P211: 0 | Q211: 0 | R211: 0 | S211: 0 | T211: 0 | U211: 0
B212: Чистый денежный поток в результате инвестиционной деятельности | E212: -950.237819 | F212: =SUM(F209:F211) -> 0 | G212: =SUM(G209:G211) -> -475.1189095 | H212: -475.1189095 | I212: 0 | J212: 0 | K212: 0 | L212: 0 | M212: 0 | N212: 0 | O212: 0 | P212: 0 | Q212: 0 | R212: 0 | S212: 0 | T212: 0 | U212: 0
B214: Финансовый поток
B215: Привлечение Банковских средств | E215: =SUM(F215:U215) -> 529.1096947 | F215: =ПР_ЗС_привлеч * ПР_Ф_проекта -> 0 | G215: 264.5548473 | H215: 264.5548473 | I215: 0 | J215: 0 | K215: 0 | L215: 0 | M215: 0 | N215: 0 | O215: 0 | P215: 0 | Q215: 0 | R215: 0 | S215: 0 | T215: 0 | U215: 0
B216: Погашение Банковских средств | E216: -529.1096947 | F216: =ПР_ЗС_ОД_возврат * ПР_Ф_проекта -> 0 | G216: 0 | H216: 0 | I216: -82.46388301 | J216: -92.77186838 | K216: -104.3683519 | L216: -117.4143959 | M216: -132.0911954 | N216: 0 | O216: 0 | P216: 0 | Q216: 0 | R216: 0 | S216: 0 | T216: 0 | U216: 0
B217: Привлечение Собственных средств | E217: 226.7612977 | F217: =ПР_СС_привлеч * ПР_Ф_проекта -> 0 | G217: 113.3806489 | H217: 113.3806489 | I217: 0 | J217: 0 | K217: 0 | L217: 0 | M217: 0 | N217: 0 | O217: 0 | P217: 0 | Q217: 0 | R217: 0 | S217: 0 | T217: 0 | U217: 0
B218: Погашение Собственных средств | E218: -376.9906574 | F218: =ПР_СС_ОД_возврат * ПР_Ф_проекта -> 0 | G218: 0 | H218: 0 | I218: -55.91357763 | J218: -64.30061428 | K218: -73.94570642 | L218: -85.03756238 | M218: -97.79319674 | N218: 0 | O218: 0 | P218: 0 | Q218: 0 | R218: 0 | S218: 0 | T218: 0 | U218: 0
B219: Чистый денежный поток в результате финансовой деятельности | E219: -150.2293597 | F219: =SUM(F215:F218) -> 0 | G219: =SUM(G215:G218) -> 377.9354962 | H219: 377.9354962 | I219: -138.3774606 | J219: -157.0724827 | K219: -178.3140584 | L219: -202.4519583 | M219: -229.8843922 | N219: 0 | O219: 0 | P219: 0 | Q219: 0 | R219: 0 | S219: 0 | T219: 0 | U219: 0
B221: ЧИСТЫЙ ДЕНЕЖНЫЙ ПОТОК ПРОЕКТА | C221: =E221<ДопОшибка -> TRUE | E221: -2.94309784e-06 | F221: =F206+F212+F219 -> 0 | G221: =G206+G212+G219 -> 0 | H221: 0 | I221: -3.437695568e-07 | J221: -4.005202072e-07 | K221: -4.648411789e-07 | L221: -5.682246922e-07 | M221: -6.508834645e-07 | N221: -6.028388124e-08 | O221: -7.876136338e-08 | P221: -9.990686513e-08 | Q221: -1.24106085e-07 | R221: -1.518005457e-07 | S221: 0 | T221: 0 | U221: 0
A223: =MAX($A$1:A222) + 1 -> 13 | B223: РАСЧЕТ ДЛЯ ГОСУДАРСТВЕННОГО КОНТРАКТА
F224: Годы
C225: Значение | D225: Ед.изм. | E225: Сумма | F225: =ПР_год -> 2017 | G225: 2018 | H225: 2019 | I225: 2020 | J225: 2021 | K225: 2022 | L225: 2023 | M225: 2024 | N225: 2025 | O225: 2026 | P225: 2027 | Q225: 2028 | R225: 2029 | S225: 2030 | T225: 2031 | U225: 2032
B226: Проектирование (государственный счет) | D226: млн. р. | E226: =SUM(F226:U226) -> 20 | F226: =ПР_проектир -> 20 | G226: 0 | H226: 0 | I226: 0 | J226: 0 | K226: 0 | L226: 0 | M226: 0 | N226: 0 | O226: 0 | P226: 0 | Q226: 0 | R226: 0 | S226: 0 | T226: 0 | U226: 0
B227: CAPEX | D227: млн. р. | E227: =SUM(F227:U227) -> 1274.18253 | F227: =ПР_CAPEX -> 0 | G227: 637.091265 | H227: 637.091265 | I227: 0 | J227: 0 | K227: 0 | L227: 0 | M227: 0 | N227: 0 | O227: 0 | P227: 0 | Q227: 0 | R227: 0 | S227: 0 | T227: 0 | U227: 0
B228: Эксплуатация | D228: млн. р. | E228: 5 | F228: =ПР_OPEX -> 0 | G228: 0 | H228: 0 | I228: 1 | J228: 1 | K228: 1 | L228: 1 | M228: 1 | N228: 0 | O228: 0 | P228: 0 | Q228: 0 | R228: 0 | S228: 0 | T228: 0 | U228: 0
B230: Финансирование за счет государственных программ | D230: млн. р. | E230: =SUM(F230:U230) -> 343.944711 | F230: =ПР_КапГрант -> 20 | G230: 161.9723555 | H230: 161.9723555 | I230: 0 | J230: 0 | K230: 0 | L230: 0 | M230: 0 | N230: 0 | O230: 0 | P230: 0 | Q230: 0 | R230: 0 | S230: 0 | T230: 0 | U230: 0
B232: Потребность в финансировании | D232: млн. р. | E232: 950.237819 | F232: =F226 + F227 - F230 -> 0 | G232: =G226 + G227 - G230 -> 475.1189095 | H232: 475.1189095 | I232: 0 | J232: 0 | K232: 0 | L232: 0 | M232: 0 | N232: 0 | O232: 0 | P232: 0 | Q232: 0 | R232: 0 | S232: 0 | T232: 0 | U232: 0
B234: Привлечние долга, транш 1 | D234: млн. р. | E234: 475.1189095 | F234: 0 | G234: =$G$232 -> 475.1189095 | H234: 0 | I234: 0 | J234: 0 | K234: 0 | L234: 0 | M234: 0 | N234: 0 | O234: 0 | P234: 0 | Q234: 0 | R234: 0 | S234: 0 | T234: 0 | U234: 0
F235: =IF(F234 = 0, (E235 > 0) * (E235 - 1),(ПР_Срок_экспл + 2)) -> 0 | G235: 7 | H235: 6 | I235: 5 | J235: 4 | K235: 3 | L235: 2 | M235: 1 | N235: 0 | O235: 0 | P235: 0 | Q235: 0 | R235: 0 | S235: 0 | T235: 0 | U235: 0
B236: Баланс долга на начало, транш 1 | F236: =E239 + F234 -> 0 | G236: =F239 + G234 -> 475.1189095 | H236: 407.2447796 | I236: 339.3706496 | J236: 271.4965197 | K236: 203.6223898 | L236: 135.7482599 | M236: 67.87412993 | N236: 1.136868377e-13 | O236: 1.136868377e-13 | P236: 1.136868377e-13 | Q236: 1.136868377e-13 | R236: 1.136868377e-13 | S236: 1.136868377e-13 | T236: 1.136868377e-13 | U236: 1.136868377e-13
B237: Погашение долга, транш 1 | C237: =(G230 > 0) * $E$229 / (ПР_Срок_экспл + 2) | D237: млн. р. | E237: 475.1189095 | F237: =(F235 > 0) * $E$234 / (ПР_Срок_экспл + 2) -> 0 | G237: 67.87412993 | H237: 67.87412993 | I237: 67.87412993 | J237: 67.87412993 | K237: 67.87412993 | L237: 67.87412993 | M237: 67.87412993 | N237: 0 | O237: 0 | P237: 0 | Q237: 0 | R237: 0 | S237: 0 | T237: 0 | U237: 0
B238: Погашение процентов, транш 1 | D238: млн. р. | E238: =SUM(F238:U238) -> 216.6542227 | F238: =F236 * ПР_Ставка_облиг -> 0 | G238: 54.16355568 | H238: 46.42590487 | I238: 38.68825406 | J238: 30.95060325 | K238: 23.21295244 | L238: 15.47530162 | M238: 7.737650812 | N238: 1.29602995e-14 | O238: 1.29602995e-14 | P238: 1.29602995e-14 | Q238: 1.29602995e-14 | R238: 1.29602995e-14 | S238: 1.29602995e-14 | T238: 1.29602995e-14 | U238: 1.29602995e-14
B239: Баланс долга на конец, транш 1 | F239: =F236 - F237 -> 0 | G239: =G236 - G237 -> 407.2447796 | H239: 339.3706496 | I239: 271.4965197 | J239: 203.6223898 | K239: 135.7482599 | L239: 67.87412993 | M239: 1.136868377e-13 | N239: 1.136868377e-13 | O239: 1.136868377e-13 | P239: 1.136868377e-13 | Q239: 1.136868377e-13 | R239: 1.136868377e-13 | S239: 1.136868377e-13 | T239: 1.136868377e-13 | U239: 1.136868377e-13
B240: ИТОГО расходы по траншу 1 | E240: 691.7731322 | F240: =F237+F238 -> 0 | G240: =G237+G238 -> 122.0376856 | H240: 114.3000348 | I240: 106.562384 | J240: 98.82473317 | K240: 91.08708236 | L240: 83.34943155 | M240: 75.61178074 | N240: 1.29602995e-14 | O240: 1.29602995e-14 | P240: 1.29602995e-14 | Q240: 1.29602995e-14 | R240: 1.29602995e-14 | S240: 1.29602995e-14 | T240: 1.29602995e-14 | U240: 1.29602995e-14
B242: Привлечние долга, транш 2 | D242: млн. р. | E242: =SUM(F242:U242) -> 475.1189095 | F242: 0 | G242: 0 | H242: =$H$232 -> 475.1189095 | I242: 0 | J242: 0 | K242: 0 | L242: 0 | M242: 0 | N242: 0 | O242: 0 | P242: 0 | Q242: 0 | R242: 0 | S242: 0 | T242: 0 | U242: 0
F243: =IF(F242 = 0, (E243 > 0) * (E243 - 1),(ПР_Срок_экспл + 1)) -> 0 | G243: 0 | H243: 6 | I243: 5 | J243: 4 | K243: 3 | L243: 2 | M243: 1 | N243: 0 | O243: 0 | P243: 0 | Q243: 0 | R243: 0 | S243: 0 | T243: 0 | U243: 0
B244: Баланс долга на начало, транш 2 | F244: =E247 + F242 -> 0 | G244: =F247 + G242 -> 0 | H244: 475.1189095 | I244: 395.9324246 | J244: 316.7459397 | K244: 237.5594547 | L244: 158.3729698 | M244: 79.18648492 | N244: 0 | O244: 0 | P244: 0 | Q244: 0 | R244: 0 | S244: 0 | T244: 0 | U244: 0
B245: Погашение долга, транш 2 | D245: млн. р. | E245: =SUM(F245:U245) -> 475.1189095 | F245: =(F243 > 0) * $E$234 / (ПР_Срок_экспл + 1) -> 0 | G245: 0 | H245: 79.18648492 | I245: 79.18648492 | J245: 79.18648492 | K245: 79.18648492 | L245: 79.18648492 | M245: 79.18648492 | N245: 0 | O245: 0 | P245: 0 | Q245: 0 | R245: 0 | S245: 0 | T245: 0 | U245: 0
B246: Погашение процентов, транш 2 | D246: млн. р. | E246: 189.5724449 | F246: =F244 * ПР_Ставка_облиг -> 0 | G246: 0 | H246: 54.16355568 | I246: 45.1362964 | J246: 36.10903712 | K246: 27.08177784 | L246: 18.05451856 | M246: 9.02725928 | N246: 0 | O246: 0 | P246: 0 | Q246: 0 | R246: 0 | S246: 0 | T246: 0 | U246: 0
B247: Баланс долга на конец, транш 1 | F247: =F244 - F245 -> 0 | G247: =G244 - G245 -> 0 | H247: 395.9324246 | I247: 316.7459397 | J247: 237.5594547 | K247: 158.3729698 | L247: 79.18648492 | M247: 0 | N247: 0 | O247: 0 | P247: 0 | Q247: 0 | R247: 0 | S247: 0 | T247: 0 | U247: 0
B248: ИТОГО расходы по траншу 1 | E248: =SUM(F248:U248) -> 664.6913544 | F248: =F245 + F246 -> 0 | G248: =G245 + G246 -> 0 | H248: 133.3500406 | I248: 124.3227813 | J248: 115.295522 | K248: 106.2682628 | L248: 97.24100348 | M248: 88.2137442 | N248: 0 | O248: 0 | P248: 0 | Q248: 0 | R248: 0 | S248: 0 | T248: 0 | U248: 0
C250: =IRR(F250:U250) -> 0.1217200707 | F250: -465 | G250: =-465+G240+G248 -> -342.9623144 | H250: =H240+H248 -> 247.6500754 | I250: =I240+I248 -> 230.8851653 | J250: 214.1202552 | K250: 197.3553451 | L250: 180.590435 | M250: 163.8255249
B252: ВСЕГО бюджетные расходы по 44 ФЗ, в том числе | D252: млн. р. | E252: 1705.409198 | F252: =F230 + F240 + F248 + F228 -> 20 | G252: =G230 + G240 + G248 + G228 -> 284.0100411 | H252: 409.6224309 | I252: 231.8851653 | J252: 215.1202552 | K252: 198.3553451 | L252: 181.590435 | M252: 164.8255249 | N252: 1.29602995e-14 | O252: 1.29602995e-14 | P252: 1.29602995e-14 | Q252: 1.29602995e-14 | R252: 1.29602995e-14 | S252: 1.29602995e-14 | T252: 1.29602995e-14 | U252: 1.29602995e-14 | V252: ПР_Расх_Бюдж_44ФЗ
B253: погашение долга | E253: 950.237819 | F253: =F237+F245 -> 0 | G253: =G237+G245 -> 67.87412993 | H253: 147.0606148 | I253: 147.0606148 | J253: 147.0606148 | K253: 147.0606148 | L253: 147.0606148 | M253: 147.0606148 | N253: 0 | O253: 0 | P253: 0 | Q253: 0 | R253: 0 | S253: 0 | T253: 0 | U253: 0
B254: погашение процентов | E254: 406.2266676 | F254: =F238+F246 -> 0 | G254: =G238+G246 -> 54.16355568 | H254: 100.5894606 | I254: 83.82455046 | J254: 67.05964037 | K254: 50.29473028 | L254: 33.52982018 | M254: 16.76491009 | N254: 1.29602995e-14 | O254: 1.29602995e-14 | P254: 1.29602995e-14 | Q254: 1.29602995e-14 | R254: 1.29602995e-14 | S254: 1.29602995e-14 | T254: 1.29602995e-14 | U254: 1.29602995e-14
B255: государственные программы | E255: 343.944711 | F255: =F230 -> 20 | G255: =G230 -> 161.9723555 | H255: 161.9723555 | I255: 0 | J255: 0 | K255: 0 | L255: 0 | M255: 0 | N255: 0 | O255: 0 | P255: 0 | Q255: 0 | R255: 0 | S255: 0 | T255: 0 | U255: 0
B256: эксплуатация | E256: 5 | F256: =F228 -> 0 | G256: =G228 -> 0 | H256: 0 | I256: 1 | J256: 1 | K256: 1 | L256: 1 | M256: 1 | N256: 0 | O256: 0 | P256: 0 | Q256: 0 | R256: 0 | S256: 0 | T256: 0 | U256: 0
B258: Приведенная стоимость бюджетных расходов | C258: =NPV(ПР_ст_диск,ПР_Расх_Бюдж_44ФЗ) * -1 -> -1077.630697 | D258: млн. р.
B260: Расчет IRR | C260: =IRR(F260:U260) -> 0.1743025082 | F260: =-F226-F227-F228+F252 -> 0 | G260: =-G226-G227-G228+G252 -> -353.0812239 | H260: -227.4688341 | I260: 230.8851653 | J260: 214.1202552 | K260: 197.3553451 | L260: 180.590435 | M260: 163.8255249 | N260: 1.29602995e-14 | O260: 1.29602995e-14 | P260: 1.29602995e-14 | Q260: 1.29602995e-14 | R260: 1.29602995e-14 | S260: 1.29602995e-14 | T260: 1.29602995e-14 | U260: 1.29602995e-14
... 22 more rows

Sheet Отчет
A1: Предварительный расчет расходов автономного округа по концессионному соглашению по школе на 801 место с бассейном, дополнительными функциональными помещениями в микрорайоне 42 г. Сургута
A3: № п/п | B3: Номер сценария | C3: 1 | D3: 2 | E3: 3 | F3: 4
A4: Вводные данные
A5: 1. | B5: Срок соглашения, лет (в т.ч. 1 год проектирование, 2 года строительство) | C5: =ПредвРасчет!J6 -> 0 | D5: =ПредвРасчет!K6 -> 8 | E5: =ПредвРасчет!L6 -> 0 | F5: =ПредвРасчет!M6 -> 0
A6: 2. | B6: Количество лет эксплуатации | C6: =ПредвРасчет!J7 -> 0 | D6: =ПредвРасчет!K7 -> 5 | E6: =ПредвРасчет!L7 -> 0 | F6: =ПредвРасчет!M7 -> 0
A7: 3. | B7: Капит.грант на инвестиционной стадии, в % от капзатрат без НДС | C7: =ПредвРасчет!J8 -> 0 | D7: =ПредвРасчет!K8 -> 0.3 | E7: =ПредвРасчет!L8 -> 0 | F7: =ПредвРасчет!M8 -> 0
A8: 4. | B8: Сумма кап.гранта на инвестиционной стадии, млн. рублей | C8: =SUM(ПР_КапГрант) -> 343.944711 | D8: =SUM(ПР_КапГрант) -> 343.944711 | E8: =SUM(ПР_КапГрант) -> 343.944711 | F8: =SUM(ПР_КапГрант) -> 343.944711
A9: 5. | B9: Сумма кап.затрат с НДС в ценах соотв-их лет, млн. рублей (*), в том числе | C9: =SUM(ПР_CAPEX) + SUM(ПР_проектир) -> 1294.18253 | D9: =SUM(ПР_CAPEX) + SUM(ПР_проектир) -> 1294.18253 | E9: =SUM(ПР_CAPEX) + SUM(ПР_проектир) -> 1294.18253 | F9: =SUM(ПР_CAPEX) + SUM(ПР_проектир) -> 1294.18253
A10: 6. | B10: - стоимость проектирования, млн. рублей | C10: =SUM(ПР_проектир) -> 20 | D10: =SUM(ПР_проектир) -> 20 | E10: =SUM(ПР_проектир) -> 20 | F10: =SUM(ПР_проектир) -> 20
A11: Номинальные показатели проекта | B11: Номинальные показатели проекта
A12: 7. | B12: Расходы бюджета Югры, млн. рублей, в том числе | C12: =ПредвРасчет!J17 * -1 -> 0 | D12: =ПредвРасчет!K17 * -1 -> 2023.113201 | E12: =ПредвРасчет!L17 * -1 -> 0 | F12: =ПредвРасчет!M17 * -1 -> 0
A13: 7.1. | B13: - расходы на эксплуатацию объекта, млн. рублей | C13: =SUM(ПР_OPEX_год) * C6 -> 0 | D13: =SUM(ПР_OPEX_год) * D6 -> 5 | E13: =SUM(ПР_OPEX_год) * E6 -> 0 | F13: =SUM(ПР_OPEX_год) * F6 -> 0
A14: 8. | B14: Удорожание объекта, млн. рублей (п.7 - п.7.1. - п.5) | C14: =C12-C9-C13 -> -1294.18253 | D14: =D12-D9-D13 -> 723.9306708 | E14: -1294.18253 | F14: -1294.18253
A15: 9. | B15: Доходы бюджета, млн. рублей | C15: =ПредвРасчет!J18 -> 0 | D15: =ПредвРасчет!K18 -> 146.0923155 | E15: =ПредвРасчет!L18 -> 0 | F15: =ПредвРасчет!M18 -> 0
A16: 10. | B16: Переплата бюджета, млн. рублей (п.8 - п.9) | C16: =C14-C15 -> -1294.18253 | D16: =D14-D15 -> 577.8383553 | E16: -1294.18253 | F16: -1294.18253
A17: Интегральные показатели проекта | B17: Интегральные показатели проекта
A18: 11. | B18: PV бюджета, млн.р. | C18: =ПредвРасчет!J12 * -1 -> 0 | D18: =ПредвРасчет!K12 * -1 -> 1148.093815 | E18: =ПредвРасчет!L12 * -1 -> 0 | F18: =ПредвРасчет!M12 * -1 -> 0
A19: 12. | B19: IRR инвестора | C19: =ПредвРасчет!J13 -> 0 | D19: =ПредвРасчет!K13 -> 0.1457923391 | E19: =ПредвРасчет!L13 -> 0 | F19: =ПредвРасчет!M13 -> 0
A20: 13. | B20: IRR проекта для бюджета | C20: =ПредвРасчет!J14 -> 0 | D20: =ПредвРасчет!K14 -> 0.1050536562 | E20: =ПредвРасчет!L14 -> 0 | F20: =ПредвРасчет!M14 -> 0
A21: Показатели проекта при государственном контракте (облигационный займ) | B21: Показатели проекта при государственном контракте
A22: 14. | B22: Расходы бюджета Югры, млн. р., в том числе | C22: =ПредвРасчет!J22 * -1 -> 0 | D22: =ПредвРасчет!K22 * -1 -> 1705.409198 | E22: =ПредвРасчет!L22 * -1 -> 0 | F22: =ПредвРасчет!M22 * -1 -> 0
A23: 14.1. | B23: - расходы на эксплуатацию объекта, млн. рублей | C23: =C13 -> 0 | D23: =D13 -> 5 | E23: 0 | F23: 0
A24: 15. | B24: Переплата бюджета, млн. рублей (п.14. - п.14.1. - п.5.) | C24: =C22-C9-C13 -> -1294.18253 | D24: =D22-D9-D13 -> 406.2266676 | E24: -1294.18253 | F24: -1294.18253
A25: 16. | B25: PV бюджета, млн.рублей | C25: =ПредвРасчет!J23 * -1 -> 0 | D25: =ПредвРасчет!K23 * -1 -> 1077.630697 | E25: =ПредвРасчет!L23 * -1 -> 0 | F25: =ПредвРасчет!M23 * -1 -> 0
A26: 17. | B26: Ставка по облигационному займу | C26: =ПР_ст_диск -> 0.114 | D26: =ПР_ст_диск -> 0.114 | E26: =ПР_ст_диск -> 0.114 | F26: =ПР_ст_диск -> 0.114
A27: Прочие вводные данные (для информации) | B27: Прочие вводные данные (для информации)
A28: 18. | B28: Доля оборудования в капитальных затратах (10%), млн. рублей | C28: =C9 * ПР_CAPEX_доля_оборуд -> 129.418253 | D28: =D9 * ПР_CAPEX_доля_оборуд -> 129.418253 | E28: =E9 * ПР_CAPEX_доля_оборуд -> 129.418253 | F28: =F9 * ПР_CAPEX_доля_оборуд -> 129.418253
A29: 19. | B29: Доля малоценных предметов* в кап.затратах (6,3%), млн. рублей | C29: =C9 * ПР_CAPEX_доля_малоц -> 81.53349939 | D29: =D9 * ПР_CAPEX_доля_малоц -> 81.53349939 | E29: =E9 * ПР_CAPEX_доля_малоц -> 81.53349939 | F29: =F9 * ПР_CAPEX_доля_малоц -> 81.53349939
A30: * | B30: капитальные затраты рассчитаны на основе методики
A31: ** | B31: малоценные предметы - мебель, инвентарь, комнатные растения, базовый ассортимент лекартсвенных препаратов, посуда, спецодежда и т.п.

Sheet Inputs
A1: ШАБЛОН
A2: Начало периода | H2: НачПериода | Q2: 2016-01-01 | R2: =Q3+1 -> 2016-04-01 | S2: =R3+1 -> 2016-07-01 | T2: 2016-10-01 | U2: 2017-01-01 | V2: 2017-04-01 | W2: 2017-07-01 | X2: 2017-10-01 | Y2: 2018-01-01 | Z2: 2018-04-01 | AA2: 2018-07-01 | AB2: 2018-10-01 | AC2: 2019-01-01 | AD2: 2019-04-01 | AE2: 2019-07-01 | AF2: 2019-10-01 | AG2: 2020-01-01 | AH2: 2020-04-01 | AI2: 2020-07-01 | AJ2: 2020-10-01 | AK2: 2021-01-01 | AL2: 2021-04-01 | AM2: 2021-07-01 | AN2: 2021-10-01 | AO2: 2022-01-01 | AP2: 2022-04-01 | AQ2: 2022-07-01 | AR2: 2022-10-01 | AS2: 2023-01-01 | AT2: 2023-04-01 | AU2: 2023-07-01 | AV2: 2023-10-01 | AW2: 2024-01-01 | AX2: 2024-04-01 | AY2: 2024-07-01 | AZ2: 2024-10-01 | BA2: 2025-01-01 | BB2: 2025-04-01 | BC2: 2025-07-01 | BD2: 2025-10-01 | BE2: 2026-01-01 | BF2: 2026-04-01 | BG2: 2026-07-01 | BH2: 2026-10-01 | BI2: 2027-01-01 | BJ2: 2027-04-01 | BK2: 2027-07-01 | BL2: 2027-10-01 | BM2: 2028-01-01 | BN2: 2028-04-01 | BO2: 2028-07-01 | BP2: 2028-10-01 | BQ2: 2029-01-01 | BR2: 2029-04-01 | BS2: 2029-07-01 | BT2: 2029-10-01 | BU2: 2030-01-01 | BV2: 2030-04-01 | BW2: 2030-07-01 | BX2: 2030-10-01 | BY2: 2031-01-01 | BZ2: 2031-04-01 | CA2: 2031-07-01 | CB2: 2031-10-01 | CC2: 2032-01-01 | CD2: 2032-04-01 | CE2: =CD3+1 -> 2032-07-01 | CF2: 2032-10-01 | CG2: 2033-01-01 | CH2: 2033-04-01 | CI2: 2033-07-01 | CJ2: 2033-10-01 | CK2: 2034-01-01 | CL2: 2034-04-01 | CM2: 2034-07-01 | CN2: 2034-10-01 | CO2: 2035-01-01 | CP2: 2035-04-01 | CQ2: 2035-07-01 | CR2: 2035-10-01 | CS2: 2036-01-01 | CT2: 2036-04-01 | CU2: 2036-07-01 | CV2: 2036-10-01 | CW2: НачПериода
A3: Окончание периода | H3: КонПериода | Q3: =EOMONTH(Q2,2) -> 2016-03-31 | R3: =EOMONTH(R2,2) -> 2016-06-30 | S3: =EOMONTH(S2,2) -> 2016-09-30 | T3: 2016-12-31 | U3: 2017-03-31 | V3: 2017-06-30 | W3: 2017-09-30 | X3: 2017-12-31 | Y3: 2018-03-31 | Z3: 2018-06-30 | AA3: 2018-09-30 | AB3: 2018-12-31 | AC3: 2019-03-31 | AD3: 2019-06-30 | AE3: 2019-09-30 | AF3: 2019-12-31 | AG3: 2020-03-31 | AH3: 2020-06-30 | AI3: 2020-09-30 | AJ3: 2020-12-31 | AK3: 2021-03-31 | AL3: 2021-06-30 | AM3: 2021-09-30 | AN3: 2021-12-31 | AO3: 2022-03-31 | AP3: 2022-06-30 | AQ3: 2022-09-30 | AR3: 2022-12-31 | AS3: 2023-03-31 | AT3: 2023-06-30 | AU3: 2023-09-30 | AV3: 2023-12-31 | AW3: 2024-03-31 | AX3: 2024-06-30 | AY3: 2024-09-30 | AZ3: 2024-12-31 | BA3: 2025-03-31 | BB3: 2025-06-30 | BC3: 2025-09-30 | BD3: 2025-12-31 | BE3: 2026-03-31 | BF3: 2026-06-30 | BG3: 2026-09-30 | BH3: 2026-12-31 | BI3: 2027-03-31 | BJ3: 2027-06-30 | BK3: 2027-09-30 | BL3: 2027-12-31 | BM3: 2028-03-31 | BN3: 2028-06-30 | BO3: 2028-09-30 | BP3: 2028-12-31 | BQ3: 2029-03-31 | BR3: 2029-06-30 | BS3: 2029-09-30 | BT3: 2029-12-31 | BU3: 2030-03-31 | BV3: 2030-06-30 | BW3: 2030-09-30 | BX3: 2030-12-31 | BY3: 2031-03-31 | BZ3: 2031-06-30 | CA3: 2031-09-30 | CB3: 2031-12-31 | CC3: 2032-03-31 | CD3: 2032-06-30 | CE3: =EOMONTH(CE2,2) -> 2032-09-30 | CF3: 2032-12-31 | CG3: 2033-03-31 | CH3: 2033-06-30 | CI3: 2033-09-30 | CJ3: 2033-12-31 | CK3: 2034-03-31 | CL3: 2034-06-30 | CM3: 2034-09-30 | CN3: 2034-12-31 | CO3: 2035-03-31 | CP3: 2035-06-30 | CQ3: 2035-09-30 | CR3: 2035-12-31 | CS3: 2036-03-31 | CT3: 2036-06-30 | CU3: 2036-09-30 | CV3: 2036-12-31 | CW3: КонПериода
A4: Номер квартала | Q4: =IF(P4=4,1,P4+1) -> 1 | R4: =IF(Q4=4,1,Q4+1) -> 2 | S4: 3 | T4: 4 | U4: 1 | V4: 2 | W4: 3 | X4: 4 | Y4: 1 | Z4: 2 | AA4: 3 | AB4: 4 | AC4: 1 | AD4: 2 | AE4: 3 | AF4: 4 | AG4: 1 | AH4: 2 | AI4: 3 | AJ4: 4 | AK4: 1 | AL4: 2 | AM4: 3 | AN4: 4 | AO4: 1 | AP4: 2 | AQ4: 3 | AR4: 4 | AS4: 1 | AT4: 2 | AU4: 3 | AV4: 4 | AW4: 1 | AX4: 2 | AY4: 3 | AZ4: 4 | BA4: 1 | BB4: 2 | BC4: 3 | BD4: 4 | BE4: 1 | BF4: 2 | BG4: 3 | BH4: 4 | BI4: 1 | BJ4: 2 | BK4: 3 | BL4: 4 | BM4: 1 | BN4: 2 | BO4: 3 | BP4: 4 | BQ4: 1 | BR4: 2 | BS4: 3 | BT4: 4 | BU4: 1 | BV4: 2 | BW4: 3 | BX4: 4 | BY4: 1 | BZ4: 2 | CA4: 3 | CB4: 4 | CC4: 1 | CD4: =IF(CC4=4,1,CC4+1) -> 2 | CE4: 3 | CF4: 4 | CG4: 1 | CH4: 2 | CI4: 3 | CJ4: 4 | CK4: 1 | CL4: 2 | CM4: 3 | CN4: 4 | CO4: 1 | CP4: 2 | CQ4: 3 | CR4: 4 | CS4: 1 | CT4: 2 | CU4: 3 | CV4: 4 | CW4: НомерКвартала
A5: Год | Q5: =YEAR(Q3) -> 2016 | R5: =YEAR(R3) -> 2016 | S5: 2016 | T5: 2016 | U5: 2017 | V5: 2017 | W5: 2017 | X5: 2017 | Y5: 2018 | Z5: 2018 | AA5: 2018 | AB5: 2018 | AC5: 2019 | AD5: 2019 | AE5: 2019 | AF5: 2019 | AG5: 2020 | AH5: 2020 | AI5: 2020 | AJ5: 2020 | AK5: 2021 | AL5: 2021 | AM5: 2021 | AN5: 2021 | AO5: 2022 | AP5: 2022 | AQ5: 2022 | AR5: 2022 | AS5: 2023 | AT5: 2023 | AU5: 2023 | AV5: 2023 | AW5: 2024 | AX5: 2024 | AY5: 2024 | AZ5: 2024 | BA5: 2025 | BB5: 2025 | BC5: 2025 | BD5: 2025 | BE5: 2026 | BF5: 2026 | BG5: 2026 | BH5: 2026 | BI5: 2027 | BJ5: 2027 | BK5: 2027 | BL5: 2027 | BM5: 2028 | BN5: 2028 | BO5: 2028 | BP5: 2028 | BQ5: 2029 | BR5: 2029 | BS5: 2029 | BT5: 2029 | BU5: 2030 | BV5: 2030 | BW5: 2030 | BX5: 2030 | BY5: 2031 | BZ5: 2031 | CA5: 2031 | CB5: 2031 | CC5: 2032 | CD5: =YEAR(CD3) -> 2032 | CE5: 2032 | CF5: 2032 | CG5: 2033 | CH5: 2033 | CI5: 2033 | CJ5: 2033 | CK5: 2034 | CL5: 2034 | CM5: 2034 | CN5: 2034 | CO5: 2035 | CP5: 2035 | CQ5: 2035 | CR5: 2035 | CS5: 2036 | CT5: 2036 | CU5: 2036 | CV5: 2036 | CW5: Год
Y12: 1 | Z12: 2 | AA12: 3 | AB12: 4 | AC12: 5 | AD12: 6 | AE12: 7
A16: № | B16: п. | C16: Наименование статьи | D16: Ед. измерения | E16: Сумма | F16: PV | G16: Значение | H16: Имена | I16: Источник
A18: =MAX($A$1:A17)+1 -> 1 | C18: Общие допущения
C24: Общие сведения
C25: Дата создания | G25: 2016-05-30
C26: Валюта | G26: тыс. рублей
C27: Количество месяцев в году | G27: 12 | H27: Мес_год
C28: Количество месяцев в квартале | G28: 3 | H28: Мес_кв
C29: Допустимая ошибка | G29: 0.001 | H29: ДопОшибка
C31: Временные параметры
C32: Дата начала модели, заключение КС | G32: 2017-01-01 | H32: Старт
C33: Дата начала проектирования | G33: =Старт -> 2017-01-01 | H33: НачПроектир
C34: Срок проектирования | D34: месяцы | H34: СрокПроектир
C35: Дата окончания проектирования | G35: =EDATE(G33,G34) -> 2017-01-01 | H35: КонПроектир
C36: Дата начала строительства
C37: Срок строительства | D37: месяцы
C38: Дата окончания строительства
C39: Дата начала комплектации объекта
C40: Срок комплектации объекта | D40: месяцы
C41: Дата окончания комплектации объекта
C42: Дата начала экплуатации объекта
C43: Срок эксплуатации объекта | D43: месяцы
C44: Дата окончания эксплуатации объекта
C45: Длительность эксплуатации | D45: лет
A61: =MAX($A$1:A60)+1 -> 2 | C61: Макроэкономические показатели

Sheet Шаблон
A1: ШАБЛОН
A2: Начало периода | H2: НачПериода | Q2: 2016-01-01 | R2: =Q3+1 -> 2016-04-01 | S2: =R3+1 -> 2016-07-01 | T2: 2016-10-01 | U2: 2017-01-01 | V2: 2017-04-01 | W2: 2017-07-01 | X2: 2017-10-01 | Y2: 2018-01-01 | Z2: 2018-04-01 | AA2: 2018-07-01 | AB2: 2018-10-01 | AC2: 2019-01-01 | AD2: 2019-04-01 | AE2: 2019-07-01 | AF2: 2019-10-01 | AG2: 2020-01-01 | AH2: 2020-04-01 | AI2: 2020-07-01 | AJ2: 2020-10-01 | AK2: 2021-01-01 | AL2: 2021-04-01 | AM2: 2021-07-01 | AN2: 2021-10-01 | AO2: 2022-01-01 | AP2: 2022-04-01 | AQ2: 2022-07-01 | AR2: 2022-10-01 | AS2: 2023-01-01 | AT2: 2023-04-01 | AU2: 2023-07-01 | AV2: 2023-10-01 | AW2: 2024-01-01 | AX2: 2024-04-01 | AY2: 2024-07-01 | AZ2: 2024-10-01 | BA2: 2025-01-01 | BB2: 2025-04-01 | BC2: 2025-07-01 | BD2: 2025-10-01 | BE2: 2026-01-01 | BF2: 2026-04-01 | BG2: 2026-07-01 | BH2: 2026-10-01 | BI2: 2027-01-01 | BJ2: 2027-04-01 | BK2: 2027-07-01 | BL2: 2027-10-01 | BM2: 2028-01-01 | BN2: 2028-04-01 | BO2: 2028-07-01 | BP2: 2028-10-01 | BQ2: 2029-01-01 | BR2: 2029-04-01 | BS2: 2029-07-01 | BT2: 2029-10-01 | BU2: 2030-01-01 | BV2: 2030-04-01 | BW2: 2030-07-01 | BX2: 2030-10-01 | BY2: 2031-01-01 | BZ2: 2031-04-01 | CA2: 2031-07-01 | CB2: 2031-10-01 | CC2: 2032-01-01 | CD2: 2032-04-01 | CE2: =CD3+1 -> 2032-07-01 | CF2: 2032-10-01 | CG2: 2033-01-01 | CH2: 2033-04-01 | CI2: 2033-07-01 | CJ2: 2033-10-01 | CK2: 2034-01-01 | CL2: 2034-04-01 | CM2: 2034-07-01 | CN2: 2034-10-01 | CO2: 2035-01-01 | CP2: 2035-04-01 | CQ2: 2035-07-01 | CR2: 2035-10-01 | CS2: 2036-01-01 | CT2: 2036-04-01 | CU2: 2036-07-01 | CV2: 2036-10-01 | CW2: НачПериода
A3: Окончание периода | H3: КонПериода | Q3: =EOMONTH(Q2,2) -> 2016-03-31 | R3: =EOMONTH(R2,2) -> 2016-06-30 | S3: =EOMONTH(S2,2) -> 2016-09-30 | T3: 2016-12-31 | U3: 2017-03-31 | V3: 2017-06-30 | W3: 2017-09-30 | X3: 2017-12-31 | Y3: 2018-03-31 | Z3: 2018-06-30 | AA3: 2018-09-30 | AB3: 2018-12-31 | AC3: 2019-03-31 | AD3: 2019-06-30 | AE3: 2019-09-30 | AF3: 2019-12-31 | AG3: 2020-03-31 | AH3: 2020-06-30 | AI3: 2020-09-30 | AJ3: 2020-12-31 | AK3: 2021-03-31 | AL3: 2021-06-30 | AM3: 2021-09-30 | AN3: 2021-12-31 | AO3: 2022-03-31 | AP3: 2022-06-30 | AQ3: 2022-09-30 | AR3: 2022-12-31 | AS3: 2023-03-31 | AT3: 2023-06-30 | AU3: 2023-09-30 | AV3: 2023-12-31 | AW3: 2024-03-31 | AX3: 2024-06-30 | AY3: 2024-09-30 | AZ3: 2024-12-31 | BA3: 2025-03-31 | BB3: 2025-06-30 | BC3: 2025-09-30 | BD3: 2025-12-31 | BE3: 2026-03-31 | BF3: 2026-06-30 | BG3: 2026-09-30 | BH3: 2026-12-31 | BI3: 2027-03-31 | BJ3: 2027-06-30 | BK3: 2027-09-30 | BL3: 2027-12-31 | BM3: 2028-03-31 | BN3: 2028-06-30 | BO3: 2028-09-30 | BP3: 2028-12-31 | BQ3: 2029-03-31 | BR3: 2029-06-30 | BS3: 2029-09-30 | BT3: 2029-12-31 | BU3: 2030-03-31 | BV3: 2030-06-30 | BW3: 2030-09-30 | BX3: 2030-12-31 | BY3: 2031-03-31 | BZ3: 2031-06-30 | CA3: 2031-09-30 | CB3: 2031-12-31 | CC3: 2032-03-31 | CD3: 2032-06-30 | CE3: =EOMONTH(CE2,2) -> 2032-09-30 | CF3: 2032-12-31 | CG3: 2033-03-31 | CH3: 2033-06-30 | CI3: 2033-09-30 | CJ3: 2033-12-31 | CK3: 2034-03-31 | CL3: 2034-06-30 | CM3: 2034-09-30 | CN3: 2034-12-31 | CO3: 2035-03-31 | CP3: 2035-06-30 | CQ3: 2035-09-30 | CR3: 2035-12-31 | CS3: 2036-03-31 | CT3: 2036-06-30 | CU3: 2036-09-30 | CV3: 2036-12-31 | CW3: КонПериода
A4: Номер квартала | Q4: =Номер_квартала ->  | CC4: =Номер_квартала ->  | CW4: НомерКвартала
A5: Год | Q5: =YEAR(Q3) -> 2016 | R5: =YEAR(R3) -> 2016 | S5: 2016 | T5: 2016 | U5: 2017 | V5: 2017 | W5: 2017 | X5: 2017 | Y5: 2018 | Z5: 2018 | AA5: 2018 | AB5: 2018 | AC5: 2019 | AD5: 2019 | AE5: 2019 | AF5: 2019 | AG5: 2020 | AH5: 2020 | AI5: 2020 | AJ5: 2020 | AK5: 2021 | AL5: 2021 | AM5: 2021 | AN5: 2021 | AO5: 2022 | AP5: 2022 | AQ5: 2022 | AR5: 2022 | AS5: 2023 | AT5: 2023 | AU5: 2023 | AV5: 2023 | AW5: 2024 | AX5: 2024 | AY5: 2024 | AZ5: 2024 | BA5: 2025 | BB5: 2025 | BC5: 2025 | BD5: 2025 | BE5: 2026 | BF5: 2026 | BG5: 2026 | BH5: 2026 | BI5: 2027 | BJ5: 2027 | BK5: 2027 | BL5: 2027 | BM5: 2028 | BN5: 2028 | BO5: 2028 | BP5: 2028 | BQ5: 2029 | BR5: 2029 | BS5: 2029 | BT5: 2029 | BU5: 2030 | BV5: 2030 | BW5: 2030 | BX5: 2030 | BY5: 2031 | BZ5: 2031 | CA5: 2031 | CB5: 2031 | CC5: 2032 | CD5: =YEAR(CD3) -> 2032 | CE5: 2032 | CF5: 2032 | CG5: 2033 | CH5: 2033 | CI5: 2033 | CJ5: 2033 | CK5: 2034 | CL5: 2034 | CM5: 2034 | CN5: 2034 | CO5: 2035 | CP5: 2035 | CQ5: 2035 | CR5: 2035 | CS5: 2036 | CT5: 2036 | CU5: 2036 | CV5: 2036 | CW5: Год
Y12: 1 | Z12: 2 | AA12: 3 | AB12: 4 | AC12: 5 | AD12: 6 | AE12: 7
A16: № | B16: п. | C16: Наименование статьи | D16: Ед. измерения | E16: Сумма | F16: PV | G16: Значение | H16: Имена | I16: Источник | J16: Проверка
A18: =MAX($A$1:A17)+1 -> 1 | C18: Шаблон 1
A25: =MAX($A$1:A24)+1 -> 2 | C25: Шаблон 2
